{"text_format":"1","workbook":"xlsx","n_sheets":7,"sheets":["Macro1","الوصل","الجرد المخزني ","صادر الوصولات ","الديون للمحل ","معلومات المعتمدين ","الديون على المحل "],"not_rendered":{"charts":0,"images":1,"macros":1,"external_links":0,"defined_names":0,"comments":0,"pivot_tables":0},"unopened":[],"bounds":{"document_bytes":16777216,"sheet_cells":100000,"rows_first":2000,"rows_last":500,"rows_between":2000,"halvings":0,"cell_chars":16384,"cell_head_chars":4096},"cells_cut":0,"cells_raw":0,"read":"whole","date_system":"1900"}

{"sheet":"Macro1","index":0,"n_rows":0,"n_cols":0,"rows_kept":0,"cut":false,"hidden":false,"merged":[]}

{"sheet":"الوصل","index":1,"n_rows":24,"n_cols":7,"rows_kept":24,"cut":false,"hidden":false,"merged":[[23,1,23,2],[23,3,23,5],[9,4,9,5],[8,3,8,5],[22,1,22,3]]}
[]
[]
[]
[]
[]
[]
[]
[]
[null,"السيد   :",null,"ر   قم الواتساب :-    07812623458"]
[null,"     رقم   هاتف :",{"$f":"VLOOKUP($C$9,'معلومات المعتمدين '!C4:D125,2,FALSE)","v":{"$error":"#N/A"}},"     محافظة الزبون  :",{"$f":"VLOOKUP($C$9,'معلومات المعتمدين '!C4:E125,3,FALSE)","v":{"$error":"#N/A"}},null,"عامود مساعد"]
[null,"ت","المادة","السعر","العدد","لسعر"]
[null,1,"حفافة فلبس ",null,null,{"$f":"D12*E12","v":0},{"$f":"IFERROR(VLOOKUP(C12,'الجرد المخزني '!$C$5:$K$229,9,0),\"\")","v":0}]
[null,2,"حفافة فلبس ",null,null,{"$f":"D13*E13","v":0},{"$f":"IFERROR(VLOOKUP(C13,'الجرد المخزني '!$C$5:$K$229,9,0),\"\")","v":0}]
[null,3,null,null,null,0,{"$f":"IFERROR(VLOOKUP(C14,'الجرد المخزني '!$C$5:$K$229,9,0),\"\")","v":""}]
[null,4,null,null,null,0,{"$f":"IFERROR(VLOOKUP(C15,'الجرد المخزني '!$C$5:$K$229,9,0),\"\")","v":""}]
[null,6,null,null,null,0,{"$f":"IFERROR(VLOOKUP(C16,'الجرد المخزني '!$C$5:$K$229,9,0),\"\")","v":""}]
[null,7,null,null,null,0,{"$f":"IFERROR(VLOOKUP(C17,'الجرد المخزني '!$C$5:$K$229,9,0),\"\")","v":""}]
[null,8,null,null,null,0,{"$f":"IFERROR(VLOOKUP(C18,'الجرد المخزني '!$C$5:$K$229,9,0),\"\")","v":""}]
[null,9,null,null,null,0,{"$f":"IFERROR(VLOOKUP(C19,'الجرد المخزني '!$C$5:$K$229,9,0),\"\")","v":""}]
[null,10,null,null,null,0,{"$f":"IFERROR(VLOOKUP(C20,'الجرد المخزني '!$C$5:$K$229,9,0),\"\")","v":""}]
[null,null,null,null,null,0,{"$f":"IFERROR(VLOOKUP(C21,'الجرد المخزني '!$C$5:$K$229,9,0),\"\")","v":""}]
[null,null,"التوصيل",5,1,5,{"$f":"IFERROR(VLOOKUP(C22,'الجرد المخزني '!$C$5:$K$229,9,0),\"\")","v":""}]
[null,"المجموع",null,null,{"$f":"E12+E13+E14+E15+E16+E17+E18+E19+E20","v":0},{"$f":"F12+F13+F14+F15+F16+F17+F18+F19+F21+F22","v":5}]
[null,"تاريخ الشراء :   27/2/2023"]

{"sheet":"الجرد المخزني ","index":2,"n_rows":163,"n_cols":17,"rows_kept":163,"cut":false,"hidden":false,"merged":[[0,1,1,16]]}
[null,"مخزون المواد احمد"]
[]
[]
[null,"ت","المادة ","السعر $","السعر عراقي ","السعر البيع","الوارد ","الصادر ","حجوزات","راجع ","الباقي ","الجرد بالعراقي","جرد الوارد $","المبلغ المراد ","مبلغ الراجع $","ناتج حساب المخزن ","المبلغ المحتسب"]
[null,null,"حفافة فلبس ",10,{"$f":"D5*1900","v":19000},20,1,1,null,null,{"$f":"الجدول1[[#This Row],[الوارد ]]-الجدول1[[#This Row],[الصادر ]]-الجدول1[[#This Row],[حجوزات]]-الجدول1[[#This Row],[راجع ]]","v":0},{"$f":"الجدول1[[#This Row],[السعر عراقي ]]*الجدول1[[#This Row],[الباقي ]]","v":0},{"$f":"الجدول1[[#This Row],[السعر $]]*الجدول1[[#This Row],[الوارد ]]","v":10},{"$f":"الجدول1[[#This Row],[السعر البيع]]*الجدول1[[#This Row],[الصادر ]]","v":20},{"$f":"الجدول1[[#This Row],[السعر $]]*الجدول1[[#This Row],[راجع ]]","v":0},{"$f":"الجدول1[[#This Row],[جرد الوارد $]]-الجدول1[[#This Row],[مبلغ الراجع $]]","v":10},{"$f":"الجدول1[[#This Row],[السعر البيع]]*الجدول1[[#This Row],[الوارد ]]","v":20}]
[null,null,"شامبو تصاقط شعر اصلي صيني ",12,22800,30,198,null,3,null,{"$f":"الجدول1[[#This Row],[الوارد ]]-الجدول1[[#This Row],[الصادر ]]-الجدول1[[#This Row],[حجوزات]]-الجدول1[[#This Row],[راجع ]]","v":195},{"$f":"الجدول1[[#This Row],[السعر عراقي ]]*الجدول1[[#This Row],[الباقي ]]","v":4446000},{"$f":"الجدول1[[#This Row],[السعر $]]*الجدول1[[#This Row],[الوارد ]]","v":2376},{"$f":"الجدول1[[#This Row],[الصادر ]]*الجدول1[[#This Row],[السعر عراقي ]]","v":0},{"$f":"الجدول1[[#This Row],[السعر $]]*الجدول1[[#This Row],[راجع ]]","v":0},null,{"$f":"الجدول1[[#This Row],[السعر البيع]]*الجدول1[[#This Row],[الوارد ]]","v":5940}]
[null,null,"شامبو صيني ",2,3800,5,28,1,null,null,{"$f":"الجدول1[[#This Row],[الوارد ]]-الجدول1[[#This Row],[الصادر ]]-الجدول1[[#This Row],[حجوزات]]-الجدول1[[#This Row],[راجع ]]","v":27},{"$f":"الجدول1[[#This Row],[السعر عراقي ]]*الجدول1[[#This Row],[الباقي ]]","v":102600},{"$f":"الجدول1[[#This Row],[السعر $]]*الجدول1[[#This Row],[الوارد ]]","v":56},{"$f":"الجدول1[[#This Row],[السعر البيع]]*الجدول1[[#This Row],[الصادر ]]","v":5},{"$f":"الجدول1[[#This Row],[السعر $]]*الجدول1[[#This Row],[راجع ]]","v":0},{"$f":"الجدول1[[#This Row],[جرد الوارد $]]-الجدول1[[#This Row],[مبلغ الراجع $]]","v":56},{"$f":"الجدول1[[#This Row],[السعر البيع]]*الجدول1[[#This Row],[الوارد ]]","v":140}]
[null,null,"شامبو جسم",2,3800,5,38,2,null,null,{"$f":"الجدول1[[#This Row],[الوارد ]]-الجدول1[[#This Row],[الصادر ]]-الجدول1[[#This Row],[حجوزات]]-الجدول1[[#This Row],[راجع ]]","v":36},{"$f":"الجدول1[[#This Row],[السعر عراقي ]]*الجدول1[[#This Row],[الباقي ]]","v":136800},{"$f":"الجدول1[[#This Row],[السعر $]]*الجدول1[[#This Row],[الوارد ]]","v":76},{"$f":"الجدول1[[#This Row],[السعر البيع]]*الجدول1[[#This Row],[الصادر ]]","v":10},{"$f":"الجدول1[[#This Row],[السعر $]]*الجدول1[[#This Row],[راجع ]]","v":0},{"$f":"الجدول1[[#This Row],[جرد الوارد $]]-الجدول1[[#This Row],[مبلغ الراجع $]]","v":76},{"$f":"الجدول1[[#This Row],[السعر البيع]]*الجدول1[[#This Row],[الوارد ]]","v":190}]
[null,null,"بلسم شعر ",2.5,4750,5,50,2,null,null,{"$f":"الجدول1[[#This Row],[الوارد ]]-الجدول1[[#This Row],[الصادر ]]-الجدول1[[#This Row],[حجوزات]]-الجدول1[[#This Row],[راجع ]]","v":48},{"$f":"الجدول1[[#This Row],[السعر عراقي ]]*الجدول1[[#This Row],[الباقي ]]","v":228000},{"$f":"الجدول1[[#This Row],[السعر $]]*الجدول1[[#This Row],[الوارد ]]","v":125},{"$f":"الجدول1[[#This Row],[السعر البيع]]*الجدول1[[#This Row],[الصادر ]]","v":10},{"$f":"الجدول1[[#This Row],[السعر $]]*الجدول1[[#This Row],[راجع ]]","v":0},{"$f":"الجدول1[[#This Row],[جرد الوارد $]]-الجدول1[[#This Row],[مبلغ الراجع $]]","v":125},{"$f":"الجدول1[[#This Row],[السعر البيع]]*الجدول1[[#This Row],[الوارد ]]","v":250}]
[null,null,"محضرة طعام 6 لتر ",17.5,33250,35,10,1,3,null,{"$f":"الجدول1[[#This Row],[الوارد ]]-الجدول1[[#This Row],[الصادر ]]-الجدول1[[#This Row],[حجوزات]]-الجدول1[[#This Row],[راجع ]]","v":6},{"$f":"الجدول1[[#This Row],[السعر عراقي ]]*الجدول1[[#This Row],[الباقي ]]","v":199500},{"$f":"الجدول1[[#This Row],[السعر $]]*الجدول1[[#This Row],[الوارد ]]","v":175},{"$f":"الجدول1[[#This Row],[الصادر ]]*الجدول1[[#This Row],[السعر عراقي ]]","v":33250},{"$f":"الجدول1[[#This Row],[السعر $]]*الجدول1[[#This Row],[راجع ]]","v":0},null,{"$f":"الجدول1[[#This Row],[السعر البيع]]*الجدول1[[#This Row],[الوارد ]]","v":350}]
[null,null,"مثرامة لحم صناعي ",60,114000,115,4,null,null,null,{"$f":"الجدول1[[#This Row],[الوارد ]]-الجدول1[[#This Row],[الصادر ]]-الجدول1[[#This Row],[حجوزات]]-الجدول1[[#This Row],[راجع ]]","v":4},{"$f":"الجدول1[[#This Row],[السعر عراقي ]]*الجدول1[[#This Row],[الباقي ]]","v":456000},{"$f":"الجدول1[[#This Row],[السعر $]]*الجدول1[[#This Row],[الوارد ]]","v":240},{"$f":"الجدول1[[#This Row],[الصادر ]]*الجدول1[[#This Row],[السعر عراقي ]]","v":0},{"$f":"الجدول1[[#This Row],[السعر $]]*الجدول1[[#This Row],[راجع ]]","v":0},null,{"$f":"الجدول1[[#This Row],[السعر البيع]]*الجدول1[[#This Row],[الوارد ]]","v":460}]
[null,null,"مثرامة لحم اوكي جرمني ",45,85500,95,2,null,null,2,{"$f":"الجدول1[[#This Row],[الوارد ]]-الجدول1[[#This Row],[الصادر ]]-الجدول1[[#This Row],[حجوزات]]-الجدول1[[#This Row],[راجع ]]","v":0},{"$f":"الجدول1[[#This Row],[السعر عراقي ]]*الجدول1[[#This Row],[الباقي ]]","v":0},{"$f":"الجدول1[[#This Row],[السعر $]]*الجدول1[[#This Row],[الوارد ]]","v":90},{"$f":"الجدول1[[#This Row],[السعر البيع]]*الجدول1[[#This Row],[الصادر ]]","v":0},{"$f":"الجدول1[[#This Row],[السعر $]]*الجدول1[[#This Row],[راجع ]]","v":90},{"$f":"الجدول1[[#This Row],[جرد الوارد $]]-الجدول1[[#This Row],[مبلغ الراجع $]]","v":0},{"$f":"الجدول1[[#This Row],[السعر البيع]]*الجدول1[[#This Row],[الوارد ]]","v":190}]
[null,null,"مثرامة لحم زبتر",38,72200,85,0,null,null,null,{"$f":"الجدول1[[#This Row],[الوارد ]]-الجدول1[[#This Row],[الصادر ]]-الجدول1[[#This Row],[حجوزات]]-الجدول1[[#This Row],[راجع ]]","v":0},{"$f":"الجدول1[[#This Row],[السعر عراقي ]]*الجدول1[[#This Row],[الباقي ]]","v":0},{"$f":"الجدول1[[#This Row],[السعر $]]*الجدول1[[#This Row],[الوارد ]]","v":0},{"$f":"الجدول1[[#This Row],[السعر البيع]]*الجدول1[[#This Row],[الصادر ]]","v":0},{"$f":"الجدول1[[#This Row],[السعر $]]*الجدول1[[#This Row],[راجع ]]","v":0},{"$f":"الجدول1[[#This Row],[جرد الوارد $]]-الجدول1[[#This Row],[مبلغ الراجع $]]","v":0},{"$f":"الجدول1[[#This Row],[السعر البيع]]*الجدول1[[#This Row],[الوارد ]]","v":0}]
[null,null,"طباخ سفري احمر ",3,5700,11,13,null,null,null,{"$f":"الجدول1[[#This Row],[الوارد ]]-الجدول1[[#This Row],[الصادر ]]-الجدول1[[#This Row],[حجوزات]]-الجدول1[[#This Row],[راجع ]]","v":13},{"$f":"الجدول1[[#This Row],[السعر عراقي ]]*الجدول1[[#This Row],[الباقي ]]","v":74100},{"$f":"الجدول1[[#This Row],[السعر $]]*الجدول1[[#This Row],[الوارد ]]","v":39},{"$f":"الجدول1[[#This Row],[السعر البيع]]*الجدول1[[#This Row],[الصادر ]]","v":0},{"$f":"الجدول1[[#This Row],[السعر $]]*الجدول1[[#This Row],[راجع ]]","v":0},{"$f":"الجدول1[[#This Row],[جرد الوارد $]]-الجدول1[[#This Row],[مبلغ الراجع $]]","v":39},{"$f":"الجدول1[[#This Row],[السعر البيع]]*الجدول1[[#This Row],[الوارد ]]","v":143}]
[null,null,"طباخ سلفر ولف ",16,30400,30,5,3,null,null,{"$f":"الجدول1[[#This Row],[الوارد ]]-الجدول1[[#This Row],[الصادر ]]-الجدول1[[#This Row],[حجوزات]]-الجدول1[[#This Row],[راجع ]]","v":2},{"$f":"الجدول1[[#This Row],[السعر عراقي ]]*الجدول1[[#This Row],[الباقي ]]","v":60800},{"$f":"الجدول1[[#This Row],[السعر $]]*الجدول1[[#This Row],[الوارد ]]","v":80},{"$f":"الجدول1[[#This Row],[السعر البيع]]*الجدول1[[#This Row],[الصادر ]]","v":90},{"$f":"الجدول1[[#This Row],[السعر $]]*الجدول1[[#This Row],[راجع ]]","v":0},{"$f":"الجدول1[[#This Row],[جرد الوارد $]]-الجدول1[[#This Row],[مبلغ الراجع $]]","v":80},{"$f":"الجدول1[[#This Row],[السعر البيع]]*الجدول1[[#This Row],[الوارد ]]","v":150}]
[null,null,"شافطة دهون لايكي جيرمني كاسيت اصلي",70,133000,140,2,null,null,null,{"$f":"الجدول1[[#This Row],[الوارد ]]-الجدول1[[#This Row],[الصادر ]]-الجدول1[[#This Row],[حجوزات]]-الجدول1[[#This Row],[راجع ]]","v":2},{"$f":"الجدول1[[#This Row],[السعر عراقي ]]*الجدول1[[#This Row],[الباقي ]]","v":266000},{"$f":"الجدول1[[#This Row],[السعر $]]*الجدول1[[#This Row],[الوارد ]]","v":140},{"$f":"الجدول1[[#This Row],[الصادر ]]*الجدول1[[#This Row],[السعر عراقي ]]","v":0},{"$f":"الجدول1[[#This Row],[السعر $]]*الجدول1[[#This Row],[راجع ]]","v":0},null,{"$f":"الجدول1[[#This Row],[السعر البيع]]*الجدول1[[#This Row],[الوارد ]]","v":280}]
[null,null,"مكنسة دايستر 30 لتر",45,85500,100,2,null,null,null,{"$f":"الجدول1[[#This Row],[الوارد ]]-الجدول1[[#This Row],[الصادر ]]-الجدول1[[#This Row],[حجوزات]]-الجدول1[[#This Row],[راجع ]]","v":2},{"$f":"الجدول1[[#This Row],[السعر عراقي ]]*الجدول1[[#This Row],[الباقي ]]","v":171000},{"$f":"الجدول1[[#This Row],[السعر $]]*الجدول1[[#This Row],[الوارد ]]","v":90},{"$f":"الجدول1[[#This Row],[السعر البيع]]*الجدول1[[#This Row],[الصادر ]]","v":0},{"$f":"الجدول1[[#This Row],[السعر $]]*الجدول1[[#This Row],[راجع ]]","v":0},{"$f":"الجدول1[[#This Row],[جرد الوارد $]]-الجدول1[[#This Row],[مبلغ الراجع $]]","v":90},{"$f":"الجدول1[[#This Row],[السعر البيع]]*الجدول1[[#This Row],[الوارد ]]","v":200}]
[null,null,"مكنسة ريوبي 30 لتر",45,85500,100,1,null,null,null,{"$f":"الجدول1[[#This Row],[الوارد ]]-الجدول1[[#This Row],[الصادر ]]-الجدول1[[#This Row],[حجوزات]]-الجدول1[[#This Row],[راجع ]]","v":1},{"$f":"الجدول1[[#This Row],[السعر عراقي ]]*الجدول1[[#This Row],[الباقي ]]","v":85500},{"$f":"الجدول1[[#This Row],[السعر $]]*الجدول1[[#This Row],[الوارد ]]","v":45},{"$f":"الجدول1[[#This Row],[السعر البيع]]*الجدول1[[#This Row],[الصادر ]]","v":0},{"$f":"الجدول1[[#This Row],[السعر $]]*الجدول1[[#This Row],[راجع ]]","v":0},{"$f":"الجدول1[[#This Row],[جرد الوارد $]]-الجدول1[[#This Row],[مبلغ الراجع $]]","v":45},{"$f":"الجدول1[[#This Row],[السعر البيع]]*الجدول1[[#This Row],[الوارد ]]","v":100}]
[null,null,"مكنسة صيني ماركه 20 لتر",32,60800,65,6,null,null,null,{"$f":"الجدول1[[#This Row],[الوارد ]]-الجدول1[[#This Row],[الصادر ]]-الجدول1[[#This Row],[حجوزات]]-الجدول1[[#This Row],[راجع ]]","v":6},{"$f":"الجدول1[[#This Row],[السعر عراقي ]]*الجدول1[[#This Row],[الباقي ]]","v":364800},{"$f":"الجدول1[[#This Row],[السعر $]]*الجدول1[[#This Row],[الوارد ]]","v":192},{"$f":"الجدول1[[#This Row],[السعر البيع]]*الجدول1[[#This Row],[الصادر ]]","v":0},{"$f":"الجدول1[[#This Row],[السعر $]]*الجدول1[[#This Row],[راجع ]]","v":0},{"$f":"الجدول1[[#This Row],[جرد الوارد $]]-الجدول1[[#This Row],[مبلغ الراجع $]]","v":192},{"$f":"الجدول1[[#This Row],[السعر البيع]]*الجدول1[[#This Row],[الوارد ]]","v":390}]
[null,null,"مكنسة سلفر ولف 30 لتر",52,98800,105,3,null,null,null,{"$f":"الجدول1[[#This Row],[الوارد ]]-الجدول1[[#This Row],[الصادر ]]-الجدول1[[#This Row],[حجوزات]]-الجدول1[[#This Row],[راجع ]]","v":3},{"$f":"الجدول1[[#This Row],[السعر عراقي ]]*الجدول1[[#This Row],[الباقي ]]","v":296400},{"$f":"الجدول1[[#This Row],[السعر $]]*الجدول1[[#This Row],[الوارد ]]","v":156},{"$f":"الجدول1[[#This Row],[السعر البيع]]*الجدول1[[#This Row],[الصادر ]]","v":0},{"$f":"الجدول1[[#This Row],[السعر $]]*الجدول1[[#This Row],[راجع ]]","v":0},{"$f":"الجدول1[[#This Row],[جرد الوارد $]]-الجدول1[[#This Row],[مبلغ الراجع $]]","v":156},{"$f":"الجدول1[[#This Row],[السعر البيع]]*الجدول1[[#This Row],[الوارد ]]","v":315}]
[null,null,"جدر ضغط نظامين 9 لتر",30,57000,65,3,null,null,null,{"$f":"الجدول1[[#This Row],[الوارد ]]-الجدول1[[#This Row],[الصادر ]]-الجدول1[[#This Row],[حجوزات]]-الجدول1[[#This Row],[راجع ]]","v":3},{"$f":"الجدول1[[#This Row],[السعر عراقي ]]*الجدول1[[#This Row],[الباقي ]]","v":171000},{"$f":"الجدول1[[#This Row],[السعر $]]*الجدول1[[#This Row],[الوارد ]]","v":90},{"$f":"الجدول1[[#This Row],[الصادر ]]*الجدول1[[#This Row],[السعر عراقي ]]","v":0},{"$f":"الجدول1[[#This Row],[السعر $]]*الجدول1[[#This Row],[راجع ]]","v":0},null,{"$f":"الجدول1[[#This Row],[السعر البيع]]*الجدول1[[#This Row],[الوارد ]]","v":195}]
[null,null,"جدر ضغط نظامين 11 لتر",35,66500,75,4,null,null,null,{"$f":"الجدول1[[#This Row],[الوارد ]]-الجدول1[[#This Row],[الصادر ]]-الجدول1[[#This Row],[حجوزات]]-الجدول1[[#This Row],[راجع ]]","v":4},{"$f":"الجدول1[[#This Row],[السعر عراقي ]]*الجدول1[[#This Row],[الباقي ]]","v":266000},{"$f":"الجدول1[[#This Row],[السعر $]]*الجدول1[[#This Row],[الوارد ]]","v":140},{"$f":"الجدول1[[#This Row],[الصادر ]]*الجدول1[[#This Row],[السعر عراقي ]]","v":0},{"$f":"الجدول1[[#This Row],[السعر $]]*الجدول1[[#This Row],[راجع ]]","v":0},null,{"$f":"الجدول1[[#This Row],[السعر البيع]]*الجدول1[[#This Row],[الوارد ]]","v":300}]
[null,null,"حدر ضغط نظامين 7 لتر",25,47500,55,3,null,null,null,{"$f":"الجدول1[[#This Row],[الوارد ]]-الجدول1[[#This Row],[الصادر ]]-الجدول1[[#This Row],[حجوزات]]-الجدول1[[#This Row],[راجع ]]","v":3},{"$f":"الجدول1[[#This Row],[السعر عراقي ]]*الجدول1[[#This Row],[الباقي ]]","v":142500},{"$f":"الجدول1[[#This Row],[السعر $]]*الجدول1[[#This Row],[الوارد ]]","v":75},{"$f":"الجدول1[[#This Row],[الصادر ]]*الجدول1[[#This Row],[السعر عراقي ]]","v":0},{"$f":"الجدول1[[#This Row],[السعر $]]*الجدول1[[#This Row],[راجع ]]","v":0},null,{"$f":"الجدول1[[#This Row],[السعر البيع]]*الجدول1[[#This Row],[الوارد ]]","v":165}]
[null,null,"جدر دولمه كبير ",19,36100,40,1,null,null,null,{"$f":"الجدول1[[#This Row],[الوارد ]]-الجدول1[[#This Row],[الصادر ]]-الجدول1[[#This Row],[حجوزات]]-الجدول1[[#This Row],[راجع ]]","v":1},{"$f":"الجدول1[[#This Row],[السعر عراقي ]]*الجدول1[[#This Row],[الباقي ]]","v":36100},{"$f":"الجدول1[[#This Row],[السعر $]]*الجدول1[[#This Row],[الوارد ]]","v":19},{"$f":"الجدول1[[#This Row],[السعر البيع]]*الجدول1[[#This Row],[الصادر ]]","v":0},{"$f":"الجدول1[[#This Row],[السعر $]]*الجدول1[[#This Row],[راجع ]]","v":0},{"$f":"الجدول1[[#This Row],[جرد الوارد $]]-الجدول1[[#This Row],[مبلغ الراجع $]]","v":19},{"$f":"الجدول1[[#This Row],[السعر البيع]]*الجدول1[[#This Row],[الوارد ]]","v":40}]
[null,null,"جدر نصف ضغط 24",13,24700,26,6,null,null,null,{"$f":"الجدول1[[#This Row],[الوارد ]]-الجدول1[[#This Row],[الصادر ]]-الجدول1[[#This Row],[حجوزات]]-الجدول1[[#This Row],[راجع ]]","v":6},{"$f":"الجدول1[[#This Row],[السعر عراقي ]]*الجدول1[[#This Row],[الباقي ]]","v":148200},{"$f":"الجدول1[[#This Row],[السعر $]]*الجدول1[[#This Row],[الوارد ]]","v":78},{"$f":"الجدول1[[#This Row],[الصادر ]]*الجدول1[[#This Row],[السعر عراقي ]]","v":0},{"$f":"الجدول1[[#This Row],[السعر $]]*الجدول1[[#This Row],[راجع ]]","v":0},null,{"$f":"الجدول1[[#This Row],[السعر البيع]]*الجدول1[[#This Row],[الوارد ]]","v":156}]
[null,null,"جدر نصف ضغط 26",15,28500,30,5,null,null,null,{"$f":"الجدول1[[#This Row],[الوارد ]]-الجدول1[[#This Row],[الصادر ]]-الجدول1[[#This Row],[حجوزات]]-الجدول1[[#This Row],[راجع ]]","v":5},{"$f":"الجدول1[[#This Row],[السعر عراقي ]]*الجدول1[[#This Row],[الباقي ]]","v":142500},{"$f":"الجدول1[[#This Row],[السعر $]]*الجدول1[[#This Row],[الوارد ]]","v":75},{"$f":"الجدول1[[#This Row],[الصادر ]]*الجدول1[[#This Row],[السعر عراقي ]]","v":0},{"$f":"الجدول1[[#This Row],[السعر $]]*الجدول1[[#This Row],[راجع ]]","v":0},null,{"$f":"الجدول1[[#This Row],[السعر البيع]]*الجدول1[[#This Row],[الوارد ]]","v":150}]
[null,null,"مكينه حلاقة متعدده",8,15200,17,18,1,1,null,{"$f":"الجدول1[[#This Row],[الوارد ]]-الجدول1[[#This Row],[الصادر ]]-الجدول1[[#This Row],[حجوزات]]-الجدول1[[#This Row],[راجع ]]","v":16},{"$f":"الجدول1[[#This Row],[السعر عراقي ]]*الجدول1[[#This Row],[الباقي ]]","v":243200},{"$f":"الجدول1[[#This Row],[السعر $]]*الجدول1[[#This Row],[الوارد ]]","v":144},{"$f":"الجدول1[[#This Row],[السعر البيع]]*الجدول1[[#This Row],[الصادر ]]","v":17},{"$f":"الجدول1[[#This Row],[السعر $]]*الجدول1[[#This Row],[راجع ]]","v":0},{"$f":"الجدول1[[#This Row],[جرد الوارد $]]-الجدول1[[#This Row],[مبلغ الراجع $]]","v":144},{"$f":"الجدول1[[#This Row],[السعر البيع]]*الجدول1[[#This Row],[الوارد ]]","v":306}]
[null,null,"مكينة حلاقة كيس سلفر ولف ",10,19000,20,0,null,null,null,{"$f":"الجدول1[[#This Row],[الوارد ]]-الجدول1[[#This Row],[الصادر ]]-الجدول1[[#This Row],[حجوزات]]-الجدول1[[#This Row],[راجع ]]","v":0},{"$f":"الجدول1[[#This Row],[السعر عراقي ]]*الجدول1[[#This Row],[الباقي ]]","v":0},{"$f":"الجدول1[[#This Row],[السعر $]]*الجدول1[[#This Row],[الوارد ]]","v":0},{"$f":"الجدول1[[#This Row],[السعر البيع]]*الجدول1[[#This Row],[الصادر ]]","v":0},{"$f":"الجدول1[[#This Row],[السعر $]]*الجدول1[[#This Row],[راجع ]]","v":0},{"$f":"الجدول1[[#This Row],[جرد الوارد $]]-الجدول1[[#This Row],[مبلغ الراجع $]]","v":0},{"$f":"الجدول1[[#This Row],[السعر البيع]]*الجدول1[[#This Row],[الوارد ]]","v":0}]
[null,null,"خلاط صناعي سلفر كريست الشكل القديم",10.5,19950,21,12,1,1,null,{"$f":"الجدول1[[#This Row],[الوارد ]]-الجدول1[[#This Row],[الصادر ]]-الجدول1[[#This Row],[حجوزات]]-الجدول1[[#This Row],[راجع ]]","v":10},{"$f":"الجدول1[[#This Row],[السعر عراقي ]]*الجدول1[[#This Row],[الباقي ]]","v":199500},{"$f":"الجدول1[[#This Row],[السعر $]]*الجدول1[[#This Row],[الوارد ]]","v":126},{"$f":"الجدول1[[#This Row],[الصادر ]]*الجدول1[[#This Row],[السعر عراقي ]]","v":19950},{"$f":"الجدول1[[#This Row],[السعر $]]*الجدول1[[#This Row],[راجع ]]","v":0},null,{"$f":"الجدول1[[#This Row],[السعر البيع]]*الجدول1[[#This Row],[الوارد ]]","v":252}]
[null,null,"خلاط صناعي سلفر كريست الشكل الجديد",10.6,20140,22,6,null,null,6,{"$f":"الجدول1[[#This Row],[الوارد ]]-الجدول1[[#This Row],[الصادر ]]-الجدول1[[#This Row],[حجوزات]]-الجدول1[[#This Row],[راجع ]]","v":0},{"$f":"الجدول1[[#This Row],[السعر عراقي ]]*الجدول1[[#This Row],[الباقي ]]","v":0},{"$f":"الجدول1[[#This Row],[السعر $]]*الجدول1[[#This Row],[الوارد ]]","v":63.599999999999994},{"$f":"الجدول1[[#This Row],[السعر البيع]]*الجدول1[[#This Row],[الصادر ]]","v":0},{"$f":"الجدول1[[#This Row],[السعر $]]*الجدول1[[#This Row],[راجع ]]","v":63.599999999999994},{"$f":"الجدول1[[#This Row],[جرد الوارد $]]-الجدول1[[#This Row],[مبلغ الراجع $]]","v":0},{"$f":"الجدول1[[#This Row],[السعر البيع]]*الجدول1[[#This Row],[الوارد ]]","v":132}]
[null,null,"خلاط صناعي اصلي ",22,41800,40,19,5,null,null,{"$f":"الجدول1[[#This Row],[الوارد ]]-الجدول1[[#This Row],[الصادر ]]-الجدول1[[#This Row],[حجوزات]]-الجدول1[[#This Row],[راجع ]]","v":14},{"$f":"الجدول1[[#This Row],[السعر عراقي ]]*الجدول1[[#This Row],[الباقي ]]","v":585200},{"$f":"الجدول1[[#This Row],[السعر $]]*الجدول1[[#This Row],[الوارد ]]","v":418},{"$f":"الجدول1[[#This Row],[الصادر ]]*الجدول1[[#This Row],[السعر عراقي ]]","v":209000},{"$f":"الجدول1[[#This Row],[السعر $]]*الجدول1[[#This Row],[راجع ]]","v":0},null,{"$f":"الجدول1[[#This Row],[السعر البيع]]*الجدول1[[#This Row],[الوارد ]]","v":760}]
[null,null,"صاجية رسل هوبست كبير",20,38000,40,4,1,null,null,{"$f":"الجدول1[[#This Row],[الوارد ]]-الجدول1[[#This Row],[الصادر ]]-الجدول1[[#This Row],[حجوزات]]-الجدول1[[#This Row],[راجع ]]","v":3},{"$f":"الجدول1[[#This Row],[السعر عراقي ]]*الجدول1[[#This Row],[الباقي ]]","v":114000},{"$f":"الجدول1[[#This Row],[السعر $]]*الجدول1[[#This Row],[الوارد ]]","v":80},{"$f":"الجدول1[[#This Row],[الصادر ]]*الجدول1[[#This Row],[السعر عراقي ]]","v":38000},{"$f":"الجدول1[[#This Row],[السعر $]]*الجدول1[[#This Row],[راجع ]]","v":0},null,{"$f":"الجدول1[[#This Row],[السعر البيع]]*الجدول1[[#This Row],[الوارد ]]","v":160}]
[null,null,"صاجية تزيو كبير",22,41800,45,1,null,null,null,{"$f":"الجدول1[[#This Row],[الوارد ]]-الجدول1[[#This Row],[الصادر ]]-الجدول1[[#This Row],[حجوزات]]-الجدول1[[#This Row],[راجع ]]","v":1},{"$f":"الجدول1[[#This Row],[السعر عراقي ]]*الجدول1[[#This Row],[الباقي ]]","v":41800},{"$f":"الجدول1[[#This Row],[السعر $]]*الجدول1[[#This Row],[الوارد ]]","v":22},{"$f":"الجدول1[[#This Row],[الصادر ]]*الجدول1[[#This Row],[السعر عراقي ]]","v":0},{"$f":"الجدول1[[#This Row],[السعر $]]*الجدول1[[#This Row],[راجع ]]","v":0},null,{"$f":"الجدول1[[#This Row],[السعر البيع]]*الجدول1[[#This Row],[الوارد ]]","v":45}]
[null,null,"صاجية سلفر صغير ",12,22800,25,3,1,null,null,{"$f":"الجدول1[[#This Row],[الوارد ]]-الجدول1[[#This Row],[الصادر ]]-الجدول1[[#This Row],[حجوزات]]-الجدول1[[#This Row],[راجع ]]","v":2},{"$f":"الجدول1[[#This Row],[السعر عراقي ]]*الجدول1[[#This Row],[الباقي ]]","v":45600},{"$f":"الجدول1[[#This Row],[السعر $]]*الجدول1[[#This Row],[الوارد ]]","v":36},{"$f":"الجدول1[[#This Row],[السعر البيع]]*الجدول1[[#This Row],[الصادر ]]","v":25},{"$f":"الجدول1[[#This Row],[السعر $]]*الجدول1[[#This Row],[راجع ]]","v":0},{"$f":"الجدول1[[#This Row],[جرد الوارد $]]-الجدول1[[#This Row],[مبلغ الراجع $]]","v":36},{"$f":"الجدول1[[#This Row],[السعر البيع]]*الجدول1[[#This Row],[الوارد ]]","v":75}]
[null,null,"مكينه جلي ثلاثي كنك ",9,17100,20,8,null,null,null,{"$f":"الجدول1[[#This Row],[الوارد ]]-الجدول1[[#This Row],[الصادر ]]-الجدول1[[#This Row],[حجوزات]]-الجدول1[[#This Row],[راجع ]]","v":8},{"$f":"الجدول1[[#This Row],[السعر عراقي ]]*الجدول1[[#This Row],[الباقي ]]","v":136800},{"$f":"الجدول1[[#This Row],[السعر $]]*الجدول1[[#This Row],[الوارد ]]","v":72},{"$f":"الجدول1[[#This Row],[السعر البيع]]*الجدول1[[#This Row],[الصادر ]]","v":0},{"$f":"الجدول1[[#This Row],[السعر $]]*الجدول1[[#This Row],[راجع ]]","v":0},{"$f":"الجدول1[[#This Row],[جرد الوارد $]]-الجدول1[[#This Row],[مبلغ الراجع $]]","v":72},{"$f":"الجدول1[[#This Row],[السعر البيع]]*الجدول1[[#This Row],[الوارد ]]","v":160}]
[null,null,"دريل همر 1600 واط بور بلاص",32,60800,65,4,1,null,null,{"$f":"الجدول1[[#This Row],[الوارد ]]-الجدول1[[#This Row],[الصادر ]]-الجدول1[[#This Row],[حجوزات]]-الجدول1[[#This Row],[راجع ]]","v":3},{"$f":"الجدول1[[#This Row],[السعر عراقي ]]*الجدول1[[#This Row],[الباقي ]]","v":182400},{"$f":"الجدول1[[#This Row],[السعر $]]*الجدول1[[#This Row],[الوارد ]]","v":128},{"$f":"الجدول1[[#This Row],[الصادر ]]*الجدول1[[#This Row],[السعر عراقي ]]","v":60800},{"$f":"الجدول1[[#This Row],[السعر $]]*الجدول1[[#This Row],[راجع ]]","v":0},null,{"$f":"الجدول1[[#This Row],[السعر البيع]]*الجدول1[[#This Row],[الوارد ]]","v":260}]
[null,null,"دريل باركسايد شحن ",15,{"$f":"D37*1900","v":28500},30,10,8,null,null,{"$f":"الجدول1[[#This Row],[الوارد ]]-الجدول1[[#This Row],[الصادر ]]-الجدول1[[#This Row],[حجوزات]]-الجدول1[[#This Row],[راجع ]]","v":2},{"$f":"الجدول1[[#This Row],[السعر عراقي ]]*الجدول1[[#This Row],[الباقي ]]","v":57000},{"$f":"الجدول1[[#This Row],[السعر $]]*الجدول1[[#This Row],[الوارد ]]","v":150},{"$f":"الجدول1[[#This Row],[الصادر ]]*الجدول1[[#This Row],[السعر عراقي ]]","v":228000},{"$f":"الجدول1[[#This Row],[السعر $]]*الجدول1[[#This Row],[راجع ]]","v":0},null,{"$f":"الجدول1[[#This Row],[السعر البيع]]*الجدول1[[#This Row],[الوارد ]]","v":300}]
[null,null,"دريل اخضر ",24,45600,45,13,1,null,null,{"$f":"الجدول1[[#This Row],[الوارد ]]-الجدول1[[#This Row],[الصادر ]]-الجدول1[[#This Row],[حجوزات]]-الجدول1[[#This Row],[راجع ]]","v":12},{"$f":"الجدول1[[#This Row],[السعر عراقي ]]*الجدول1[[#This Row],[الباقي ]]","v":547200},{"$f":"الجدول1[[#This Row],[السعر $]]*الجدول1[[#This Row],[الوارد ]]","v":312},{"$f":"الجدول1[[#This Row],[السعر البيع]]*الجدول1[[#This Row],[الصادر ]]","v":45},{"$f":"الجدول1[[#This Row],[السعر $]]*الجدول1[[#This Row],[راجع ]]","v":0},{"$f":"الجدول1[[#This Row],[جرد الوارد $]]-الجدول1[[#This Row],[مبلغ الراجع $]]","v":312},{"$f":"الجدول1[[#This Row],[السعر البيع]]*الجدول1[[#This Row],[الوارد ]]","v":585}]
[null,null,"لايت مدالية ",2,3800,5,129,4,1,null,{"$f":"الجدول1[[#This Row],[الوارد ]]-الجدول1[[#This Row],[الصادر ]]-الجدول1[[#This Row],[حجوزات]]-الجدول1[[#This Row],[راجع ]]","v":124},{"$f":"الجدول1[[#This Row],[السعر عراقي ]]*الجدول1[[#This Row],[الباقي ]]","v":471200},{"$f":"الجدول1[[#This Row],[السعر $]]*الجدول1[[#This Row],[الوارد ]]","v":258},{"$f":"الجدول1[[#This Row],[السعر البيع]]*الجدول1[[#This Row],[الصادر ]]","v":20},{"$f":"الجدول1[[#This Row],[السعر $]]*الجدول1[[#This Row],[راجع ]]","v":0},{"$f":"الجدول1[[#This Row],[جرد الوارد $]]-الجدول1[[#This Row],[مبلغ الراجع $]]","v":258},{"$f":"الجدول1[[#This Row],[السعر البيع]]*الجدول1[[#This Row],[الوارد ]]","v":645}]
[null,null,"ام بي 3 انارة",4,7600,10,7,null,null,null,{"$f":"الجدول1[[#This Row],[الوارد ]]-الجدول1[[#This Row],[الصادر ]]-الجدول1[[#This Row],[حجوزات]]-الجدول1[[#This Row],[راجع ]]","v":7},{"$f":"الجدول1[[#This Row],[السعر عراقي ]]*الجدول1[[#This Row],[الباقي ]]","v":53200},{"$f":"الجدول1[[#This Row],[السعر $]]*الجدول1[[#This Row],[الوارد ]]","v":28},{"$f":"الجدول1[[#This Row],[السعر البيع]]*الجدول1[[#This Row],[الصادر ]]","v":0},{"$f":"الجدول1[[#This Row],[السعر $]]*الجدول1[[#This Row],[راجع ]]","v":0},{"$f":"الجدول1[[#This Row],[جرد الوارد $]]-الجدول1[[#This Row],[مبلغ الراجع $]]","v":28},{"$f":"الجدول1[[#This Row],[السعر البيع]]*الجدول1[[#This Row],[الوارد ]]","v":70}]
[null,null,"ام بي 3 كلاسك ",8,15200,14,10,3,5,null,{"$f":"الجدول1[[#This Row],[الوارد ]]-الجدول1[[#This Row],[الصادر ]]-الجدول1[[#This Row],[حجوزات]]-الجدول1[[#This Row],[راجع ]]","v":2},{"$f":"الجدول1[[#This Row],[السعر عراقي ]]*الجدول1[[#This Row],[الباقي ]]","v":30400},{"$f":"الجدول1[[#This Row],[السعر $]]*الجدول1[[#This Row],[الوارد ]]","v":80},{"$f":"الجدول1[[#This Row],[السعر البيع]]*الجدول1[[#This Row],[الصادر ]]","v":42},{"$f":"الجدول1[[#This Row],[السعر $]]*الجدول1[[#This Row],[راجع ]]","v":0},{"$f":"الجدول1[[#This Row],[جرد الوارد $]]-الجدول1[[#This Row],[مبلغ الراجع $]]","v":80},{"$f":"الجدول1[[#This Row],[السعر البيع]]*الجدول1[[#This Row],[الوارد ]]","v":140}]
[null,null,"سيت فرجه دوار ",20,38000,40,0,null,null,null,{"$f":"الجدول1[[#This Row],[الوارد ]]-الجدول1[[#This Row],[الصادر ]]-الجدول1[[#This Row],[حجوزات]]-الجدول1[[#This Row],[راجع ]]","v":0},{"$f":"الجدول1[[#This Row],[السعر عراقي ]]*الجدول1[[#This Row],[الباقي ]]","v":0},{"$f":"الجدول1[[#This Row],[السعر $]]*الجدول1[[#This Row],[الوارد ]]","v":0},{"$f":"الجدول1[[#This Row],[السعر البيع]]*الجدول1[[#This Row],[الصادر ]]","v":0},{"$f":"الجدول1[[#This Row],[السعر $]]*الجدول1[[#This Row],[راجع ]]","v":0},{"$f":"الجدول1[[#This Row],[جرد الوارد $]]-الجدول1[[#This Row],[مبلغ الراجع $]]","v":0},{"$f":"الجدول1[[#This Row],[السعر البيع]]*الجدول1[[#This Row],[الوارد ]]","v":0}]
[null,null,"فرجه دوار",16,30400,35,3,null,null,null,{"$f":"الجدول1[[#This Row],[الوارد ]]-الجدول1[[#This Row],[الصادر ]]-الجدول1[[#This Row],[حجوزات]]-الجدول1[[#This Row],[راجع ]]","v":3},{"$f":"الجدول1[[#This Row],[السعر عراقي ]]*الجدول1[[#This Row],[الباقي ]]","v":91200},{"$f":"الجدول1[[#This Row],[السعر $]]*الجدول1[[#This Row],[الوارد ]]","v":48},{"$f":"الجدول1[[#This Row],[السعر البيع]]*الجدول1[[#This Row],[الصادر ]]","v":0},{"$f":"الجدول1[[#This Row],[السعر $]]*الجدول1[[#This Row],[راجع ]]","v":0},{"$f":"الجدول1[[#This Row],[جرد الوارد $]]-الجدول1[[#This Row],[مبلغ الراجع $]]","v":48},{"$f":"الجدول1[[#This Row],[السعر البيع]]*الجدول1[[#This Row],[الوارد ]]","v":105}]
[null,null,"خبازة حجم 40",32,60800,65,2,null,1,null,{"$f":"الجدول1[[#This Row],[الوارد ]]-الجدول1[[#This Row],[الصادر ]]-الجدول1[[#This Row],[حجوزات]]-الجدول1[[#This Row],[راجع ]]","v":1},{"$f":"الجدول1[[#This Row],[السعر عراقي ]]*الجدول1[[#This Row],[الباقي ]]","v":60800},{"$f":"الجدول1[[#This Row],[السعر $]]*الجدول1[[#This Row],[الوارد ]]","v":64},{"$f":"الجدول1[[#This Row],[السعر البيع]]*الجدول1[[#This Row],[الصادر ]]","v":0},{"$f":"الجدول1[[#This Row],[السعر $]]*الجدول1[[#This Row],[راجع ]]","v":0},{"$f":"الجدول1[[#This Row],[جرد الوارد $]]-الجدول1[[#This Row],[مبلغ الراجع $]]","v":64},{"$f":"الجدول1[[#This Row],[السعر البيع]]*الجدول1[[#This Row],[الوارد ]]","v":130}]
[null,null,"سيار t21",7,13300,17,2,1,null,null,{"$f":"الجدول1[[#This Row],[الوارد ]]-الجدول1[[#This Row],[الصادر ]]-الجدول1[[#This Row],[حجوزات]]-الجدول1[[#This Row],[راجع ]]","v":1},{"$f":"الجدول1[[#This Row],[السعر عراقي ]]*الجدول1[[#This Row],[الباقي ]]","v":13300},{"$f":"الجدول1[[#This Row],[السعر $]]*الجدول1[[#This Row],[الوارد ]]","v":14},{"$f":"الجدول1[[#This Row],[الصادر ]]*الجدول1[[#This Row],[السعر عراقي ]]","v":13300},{"$f":"الجدول1[[#This Row],[السعر $]]*الجدول1[[#This Row],[راجع ]]","v":0},null,{"$f":"الجدول1[[#This Row],[السعر البيع]]*الجدول1[[#This Row],[الوارد ]]","v":34}]
[null,null,"سيار t20",7,13300,16,10,null,null,null,{"$f":"الجدول1[[#This Row],[الوارد ]]-الجدول1[[#This Row],[الصادر ]]-الجدول1[[#This Row],[حجوزات]]-الجدول1[[#This Row],[راجع ]]","v":10},{"$f":"الجدول1[[#This Row],[السعر عراقي ]]*الجدول1[[#This Row],[الباقي ]]","v":133000},{"$f":"الجدول1[[#This Row],[السعر $]]*الجدول1[[#This Row],[الوارد ]]","v":70},{"$f":"الجدول1[[#This Row],[الصادر ]]*الجدول1[[#This Row],[السعر عراقي ]]","v":0},{"$f":"الجدول1[[#This Row],[السعر $]]*الجدول1[[#This Row],[راجع ]]","v":0},null,{"$f":"الجدول1[[#This Row],[السعر البيع]]*الجدول1[[#This Row],[الوارد ]]","v":160}]
[null,null,"سيار t19",6,11400,15,9,null,null,null,{"$f":"الجدول1[[#This Row],[الوارد ]]-الجدول1[[#This Row],[الصادر ]]-الجدول1[[#This Row],[حجوزات]]-الجدول1[[#This Row],[راجع ]]","v":9},{"$f":"الجدول1[[#This Row],[السعر عراقي ]]*الجدول1[[#This Row],[الباقي ]]","v":102600},{"$f":"الجدول1[[#This Row],[السعر $]]*الجدول1[[#This Row],[الوارد ]]","v":54},{"$f":"الجدول1[[#This Row],[الصادر ]]*الجدول1[[#This Row],[السعر عراقي ]]","v":0},{"$f":"الجدول1[[#This Row],[السعر $]]*الجدول1[[#This Row],[راجع ]]","v":0},null,{"$f":"الجدول1[[#This Row],[السعر البيع]]*الجدول1[[#This Row],[الوارد ]]","v":135}]
[null,null,"سيار t22",8,15200,20,6,null,null,null,{"$f":"الجدول1[[#This Row],[الوارد ]]-الجدول1[[#This Row],[الصادر ]]-الجدول1[[#This Row],[حجوزات]]-الجدول1[[#This Row],[راجع ]]","v":6},{"$f":"الجدول1[[#This Row],[السعر عراقي ]]*الجدول1[[#This Row],[الباقي ]]","v":91200},{"$f":"الجدول1[[#This Row],[السعر $]]*الجدول1[[#This Row],[الوارد ]]","v":48},{"$f":"الجدول1[[#This Row],[السعر البيع]]*الجدول1[[#This Row],[الصادر ]]","v":0},{"$f":"الجدول1[[#This Row],[السعر $]]*الجدول1[[#This Row],[راجع ]]","v":0},{"$f":"الجدول1[[#This Row],[جرد الوارد $]]-الجدول1[[#This Row],[مبلغ الراجع $]]","v":48},{"$f":"الجدول1[[#This Row],[السعر البيع]]*الجدول1[[#This Row],[الوارد ]]","v":120}]
[null,null,"سيار b08",8,15200,18,6,null,null,null,{"$f":"الجدول1[[#This Row],[الوارد ]]-الجدول1[[#This Row],[الصادر ]]-الجدول1[[#This Row],[حجوزات]]-الجدول1[[#This Row],[راجع ]]","v":6},{"$f":"الجدول1[[#This Row],[السعر عراقي ]]*الجدول1[[#This Row],[الباقي ]]","v":91200},{"$f":"الجدول1[[#This Row],[السعر $]]*الجدول1[[#This Row],[الوارد ]]","v":48},{"$f":"الجدول1[[#This Row],[الصادر ]]*الجدول1[[#This Row],[السعر عراقي ]]","v":0},{"$f":"الجدول1[[#This Row],[السعر $]]*الجدول1[[#This Row],[راجع ]]","v":0},null,{"$f":"الجدول1[[#This Row],[السعر البيع]]*الجدول1[[#This Row],[الوارد ]]","v":108}]
[null,null,"سيار b06",7.5,14250,16,3,null,null,null,{"$f":"الجدول1[[#This Row],[الوارد ]]-الجدول1[[#This Row],[الصادر ]]-الجدول1[[#This Row],[حجوزات]]-الجدول1[[#This Row],[راجع ]]","v":3},{"$f":"الجدول1[[#This Row],[السعر عراقي ]]*الجدول1[[#This Row],[الباقي ]]","v":42750},{"$f":"الجدول1[[#This Row],[السعر $]]*الجدول1[[#This Row],[الوارد ]]","v":22.5},{"$f":"الجدول1[[#This Row],[الصادر ]]*الجدول1[[#This Row],[السعر عراقي ]]","v":0},{"$f":"الجدول1[[#This Row],[السعر $]]*الجدول1[[#This Row],[راجع ]]","v":0},null,{"$f":"الجدول1[[#This Row],[السعر البيع]]*الجدول1[[#This Row],[الوارد ]]","v":48}]
[null,null,"سيار اخضر ",6,11400,13,7,null,null,null,{"$f":"الجدول1[[#This Row],[الوارد ]]-الجدول1[[#This Row],[الصادر ]]-الجدول1[[#This Row],[حجوزات]]-الجدول1[[#This Row],[راجع ]]","v":7},{"$f":"الجدول1[[#This Row],[السعر عراقي ]]*الجدول1[[#This Row],[الباقي ]]","v":79800},{"$f":"الجدول1[[#This Row],[السعر $]]*الجدول1[[#This Row],[الوارد ]]","v":42},{"$f":"الجدول1[[#This Row],[الصادر ]]*الجدول1[[#This Row],[السعر عراقي ]]","v":0},{"$f":"الجدول1[[#This Row],[السعر $]]*الجدول1[[#This Row],[راجع ]]","v":0},null,{"$f":"الجدول1[[#This Row],[السعر البيع]]*الجدول1[[#This Row],[الوارد ]]","v":91}]
[null,null,"سيار سمارت بور ",6,11400,13,6,null,1,null,{"$f":"الجدول1[[#This Row],[الوارد ]]-الجدول1[[#This Row],[الصادر ]]-الجدول1[[#This Row],[حجوزات]]-الجدول1[[#This Row],[راجع ]]","v":5},{"$f":"الجدول1[[#This Row],[السعر عراقي ]]*الجدول1[[#This Row],[الباقي ]]","v":57000},{"$f":"الجدول1[[#This Row],[السعر $]]*الجدول1[[#This Row],[الوارد ]]","v":36},{"$f":"الجدول1[[#This Row],[الصادر ]]*الجدول1[[#This Row],[السعر عراقي ]]","v":0},{"$f":"الجدول1[[#This Row],[السعر $]]*الجدول1[[#This Row],[راجع ]]","v":0},null,{"$f":"الجدول1[[#This Row],[السعر البيع]]*الجدول1[[#This Row],[الوارد ]]","v":78}]
[null,null,"قلاية 10 لتر جنل",40,76000,85,1,null,null,null,{"$f":"الجدول1[[#This Row],[الوارد ]]-الجدول1[[#This Row],[الصادر ]]-الجدول1[[#This Row],[حجوزات]]-الجدول1[[#This Row],[راجع ]]","v":1},{"$f":"الجدول1[[#This Row],[السعر عراقي ]]*الجدول1[[#This Row],[الباقي ]]","v":76000},{"$f":"الجدول1[[#This Row],[السعر $]]*الجدول1[[#This Row],[الوارد ]]","v":40},{"$f":"الجدول1[[#This Row],[الصادر ]]*الجدول1[[#This Row],[السعر عراقي ]]","v":0},{"$f":"الجدول1[[#This Row],[السعر $]]*الجدول1[[#This Row],[راجع ]]","v":0},null,{"$f":"الجدول1[[#This Row],[السعر البيع]]*الجدول1[[#This Row],[الوارد ]]","v":85}]
[null,null,"قلاية سلفر كرست 8 لتر",28,53200,60,1,null,null,null,{"$f":"الجدول1[[#This Row],[الوارد ]]-الجدول1[[#This Row],[الصادر ]]-الجدول1[[#This Row],[حجوزات]]-الجدول1[[#This Row],[راجع ]]","v":1},{"$f":"الجدول1[[#This Row],[السعر عراقي ]]*الجدول1[[#This Row],[الباقي ]]","v":53200},{"$f":"الجدول1[[#This Row],[السعر $]]*الجدول1[[#This Row],[الوارد ]]","v":28},{"$f":"الجدول1[[#This Row],[الصادر ]]*الجدول1[[#This Row],[السعر عراقي ]]","v":0},{"$f":"الجدول1[[#This Row],[السعر $]]*الجدول1[[#This Row],[راجع ]]","v":0},null,{"$f":"الجدول1[[#This Row],[السعر البيع]]*الجدول1[[#This Row],[الوارد ]]","v":60}]
[null,null,"قلاية هوائي جنل راف 6 لتر",27,51300,60,3,1,null,null,{"$f":"الجدول1[[#This Row],[الوارد ]]-الجدول1[[#This Row],[الصادر ]]-الجدول1[[#This Row],[حجوزات]]-الجدول1[[#This Row],[راجع ]]","v":2},{"$f":"الجدول1[[#This Row],[السعر عراقي ]]*الجدول1[[#This Row],[الباقي ]]","v":102600},{"$f":"الجدول1[[#This Row],[السعر $]]*الجدول1[[#This Row],[الوارد ]]","v":81},{"$f":"الجدول1[[#This Row],[السعر البيع]]*الجدول1[[#This Row],[الصادر ]]","v":60},{"$f":"الجدول1[[#This Row],[السعر $]]*الجدول1[[#This Row],[راجع ]]","v":0},{"$f":"الجدول1[[#This Row],[جرد الوارد $]]-الجدول1[[#This Row],[مبلغ الراجع $]]","v":81},{"$f":"الجدول1[[#This Row],[السعر البيع]]*الجدول1[[#This Row],[الوارد ]]","v":180}]
[null,null,"قلاية سلفر جيرمني 7.7 لتر شاشه",42,79800,85,3,1,null,null,{"$f":"الجدول1[[#This Row],[الوارد ]]-الجدول1[[#This Row],[الصادر ]]-الجدول1[[#This Row],[حجوزات]]-الجدول1[[#This Row],[راجع ]]","v":2},{"$f":"الجدول1[[#This Row],[السعر عراقي ]]*الجدول1[[#This Row],[الباقي ]]","v":159600},{"$f":"الجدول1[[#This Row],[السعر $]]*الجدول1[[#This Row],[الوارد ]]","v":126},{"$f":"الجدول1[[#This Row],[الصادر ]]*الجدول1[[#This Row],[السعر عراقي ]]","v":79800},{"$f":"الجدول1[[#This Row],[السعر $]]*الجدول1[[#This Row],[راجع ]]","v":0},null,{"$f":"الجدول1[[#This Row],[السعر البيع]]*الجدول1[[#This Row],[الوارد ]]","v":255}]
[null,null,"قلاية سلاقة 7 لتر ",55,104500,110,0,4,null,null,{"$f":"الجدول1[[#This Row],[الوارد ]]-الجدول1[[#This Row],[الصادر ]]-الجدول1[[#This Row],[حجوزات]]-الجدول1[[#This Row],[راجع ]]","v":-4},{"$f":"الجدول1[[#This Row],[السعر عراقي ]]*الجدول1[[#This Row],[الباقي ]]","v":-418000},{"$f":"الجدول1[[#This Row],[السعر $]]*الجدول1[[#This Row],[الوارد ]]","v":0},{"$f":"الجدول1[[#This Row],[السعر البيع]]*الجدول1[[#This Row],[الصادر ]]","v":440},{"$f":"الجدول1[[#This Row],[السعر $]]*الجدول1[[#This Row],[راجع ]]","v":0},{"$f":"الجدول1[[#This Row],[جرد الوارد $]]-الجدول1[[#This Row],[مبلغ الراجع $]]","v":0},{"$f":"الجدول1[[#This Row],[السعر البيع]]*الجدول1[[#This Row],[الوارد ]]","v":0}]
[null,null,"ماعون قلاية ",1,1900,2,23,1,null,null,{"$f":"الجدول1[[#This Row],[الوارد ]]-الجدول1[[#This Row],[الصادر ]]-الجدول1[[#This Row],[حجوزات]]-الجدول1[[#This Row],[راجع ]]","v":22},{"$f":"الجدول1[[#This Row],[السعر عراقي ]]*الجدول1[[#This Row],[الباقي ]]","v":41800},{"$f":"الجدول1[[#This Row],[السعر $]]*الجدول1[[#This Row],[الوارد ]]","v":23},{"$f":"الجدول1[[#This Row],[الصادر ]]*الجدول1[[#This Row],[السعر عراقي ]]","v":1900},{"$f":"الجدول1[[#This Row],[السعر $]]*الجدول1[[#This Row],[راجع ]]","v":0},null,{"$f":"الجدول1[[#This Row],[السعر البيع]]*الجدول1[[#This Row],[الوارد ]]","v":46}]
[null,null,"فاره اصليه ",50,95000,110,0,null,null,null,{"$f":"الجدول1[[#This Row],[الوارد ]]-الجدول1[[#This Row],[الصادر ]]-الجدول1[[#This Row],[حجوزات]]-الجدول1[[#This Row],[راجع ]]","v":0},{"$f":"الجدول1[[#This Row],[السعر عراقي ]]*الجدول1[[#This Row],[الباقي ]]","v":0},{"$f":"الجدول1[[#This Row],[السعر $]]*الجدول1[[#This Row],[الوارد ]]","v":0},{"$f":"الجدول1[[#This Row],[الصادر ]]*الجدول1[[#This Row],[السعر عراقي ]]","v":0},{"$f":"الجدول1[[#This Row],[السعر $]]*الجدول1[[#This Row],[راجع ]]","v":0},null,{"$f":"الجدول1[[#This Row],[السعر البيع]]*الجدول1[[#This Row],[الوارد ]]","v":0}]
[null,null,"فارة سلفر ولف",50,95000,110,1,null,null,null,{"$f":"الجدول1[[#This Row],[الوارد ]]-الجدول1[[#This Row],[الصادر ]]-الجدول1[[#This Row],[حجوزات]]-الجدول1[[#This Row],[راجع ]]","v":1},{"$f":"الجدول1[[#This Row],[السعر عراقي ]]*الجدول1[[#This Row],[الباقي ]]","v":95000},{"$f":"الجدول1[[#This Row],[السعر $]]*الجدول1[[#This Row],[الوارد ]]","v":50},{"$f":"الجدول1[[#This Row],[السعر البيع]]*الجدول1[[#This Row],[الصادر ]]","v":0},{"$f":"الجدول1[[#This Row],[السعر $]]*الجدول1[[#This Row],[راجع ]]","v":0},{"$f":"الجدول1[[#This Row],[جرد الوارد $]]-الجدول1[[#This Row],[مبلغ الراجع $]]","v":50},{"$f":"الجدول1[[#This Row],[السعر البيع]]*الجدول1[[#This Row],[الوارد ]]","v":110}]
[null,null,"سجين ستيل سيت",4,7600,1,120,53,null,null,{"$f":"الجدول1[[#This Row],[الوارد ]]-الجدول1[[#This Row],[الصادر ]]-الجدول1[[#This Row],[حجوزات]]-الجدول1[[#This Row],[راجع ]]","v":67},{"$f":"الجدول1[[#This Row],[السعر عراقي ]]*الجدول1[[#This Row],[الباقي ]]","v":509200},{"$f":"الجدول1[[#This Row],[السعر $]]*الجدول1[[#This Row],[الوارد ]]","v":480},{"$f":"الجدول1[[#This Row],[الصادر ]]*الجدول1[[#This Row],[السعر عراقي ]]","v":402800},{"$f":"الجدول1[[#This Row],[السعر $]]*الجدول1[[#This Row],[راجع ]]","v":0},null,{"$f":"الجدول1[[#This Row],[السعر البيع]]*الجدول1[[#This Row],[الوارد ]]","v":120}]
[null,null,"طاحونة سلفر ولف",13,24700,26,3,1,null,null,{"$f":"الجدول1[[#This Row],[الوارد ]]-الجدول1[[#This Row],[الصادر ]]-الجدول1[[#This Row],[حجوزات]]-الجدول1[[#This Row],[راجع ]]","v":2},{"$f":"الجدول1[[#This Row],[السعر عراقي ]]*الجدول1[[#This Row],[الباقي ]]","v":49400},{"$f":"الجدول1[[#This Row],[السعر $]]*الجدول1[[#This Row],[الوارد ]]","v":39},{"$f":"الجدول1[[#This Row],[السعر البيع]]*الجدول1[[#This Row],[الصادر ]]","v":26},{"$f":"الجدول1[[#This Row],[السعر $]]*الجدول1[[#This Row],[راجع ]]","v":0},{"$f":"الجدول1[[#This Row],[جرد الوارد $]]-الجدول1[[#This Row],[مبلغ الراجع $]]","v":39},{"$f":"الجدول1[[#This Row],[السعر البيع]]*الجدول1[[#This Row],[الوارد ]]","v":78}]
[null,null,"خفاقة سلفر كرست ",6.5,12350,14,1,null,null,null,{"$f":"الجدول1[[#This Row],[الوارد ]]-الجدول1[[#This Row],[الصادر ]]-الجدول1[[#This Row],[حجوزات]]-الجدول1[[#This Row],[راجع ]]","v":1},{"$f":"الجدول1[[#This Row],[السعر عراقي ]]*الجدول1[[#This Row],[الباقي ]]","v":12350},{"$f":"الجدول1[[#This Row],[السعر $]]*الجدول1[[#This Row],[الوارد ]]","v":6.5},{"$f":"الجدول1[[#This Row],[الصادر ]]*الجدول1[[#This Row],[السعر عراقي ]]","v":0},{"$f":"الجدول1[[#This Row],[السعر $]]*الجدول1[[#This Row],[راجع ]]","v":0},null,{"$f":"الجدول1[[#This Row],[السعر البيع]]*الجدول1[[#This Row],[الوارد ]]","v":14}]
[null,null,"خفاقة شاشة",12,22800,25,7,null,null,null,{"$f":"الجدول1[[#This Row],[الوارد ]]-الجدول1[[#This Row],[الصادر ]]-الجدول1[[#This Row],[حجوزات]]-الجدول1[[#This Row],[راجع ]]","v":7},{"$f":"الجدول1[[#This Row],[السعر عراقي ]]*الجدول1[[#This Row],[الباقي ]]","v":159600},{"$f":"الجدول1[[#This Row],[السعر $]]*الجدول1[[#This Row],[الوارد ]]","v":84},{"$f":"الجدول1[[#This Row],[السعر البيع]]*الجدول1[[#This Row],[الصادر ]]","v":0},{"$f":"الجدول1[[#This Row],[السعر $]]*الجدول1[[#This Row],[راجع ]]","v":0},{"$f":"الجدول1[[#This Row],[جرد الوارد $]]-الجدول1[[#This Row],[مبلغ الراجع $]]","v":84},{"$f":"الجدول1[[#This Row],[السعر البيع]]*الجدول1[[#This Row],[الوارد ]]","v":175}]
[null,null,"مكينة خياطة برذر ",80,152000,150,1,null,null,null,{"$f":"الجدول1[[#This Row],[الوارد ]]-الجدول1[[#This Row],[الصادر ]]-الجدول1[[#This Row],[حجوزات]]-الجدول1[[#This Row],[راجع ]]","v":1},{"$f":"الجدول1[[#This Row],[السعر عراقي ]]*الجدول1[[#This Row],[الباقي ]]","v":152000},{"$f":"الجدول1[[#This Row],[السعر $]]*الجدول1[[#This Row],[الوارد ]]","v":80},{"$f":"الجدول1[[#This Row],[السعر البيع]]*الجدول1[[#This Row],[الصادر ]]","v":0},{"$f":"الجدول1[[#This Row],[السعر $]]*الجدول1[[#This Row],[راجع ]]","v":0},{"$f":"الجدول1[[#This Row],[جرد الوارد $]]-الجدول1[[#This Row],[مبلغ الراجع $]]","v":80},{"$f":"الجدول1[[#This Row],[السعر البيع]]*الجدول1[[#This Row],[الوارد ]]","v":150}]
[null,null,"ميزان اشخاص لايكي جيرمني ",11,20900,25,7,1,null,null,{"$f":"الجدول1[[#This Row],[الوارد ]]-الجدول1[[#This Row],[الصادر ]]-الجدول1[[#This Row],[حجوزات]]-الجدول1[[#This Row],[راجع ]]","v":6},{"$f":"الجدول1[[#This Row],[السعر عراقي ]]*الجدول1[[#This Row],[الباقي ]]","v":125400},{"$f":"الجدول1[[#This Row],[السعر $]]*الجدول1[[#This Row],[الوارد ]]","v":77},{"$f":"الجدول1[[#This Row],[الصادر ]]*الجدول1[[#This Row],[السعر عراقي ]]","v":20900},{"$f":"الجدول1[[#This Row],[السعر $]]*الجدول1[[#This Row],[راجع ]]","v":0},null,{"$f":"الجدول1[[#This Row],[السعر البيع]]*الجدول1[[#This Row],[الوارد ]]","v":175}]
[null,null,"اوتي سلفر كرست ",8,15200,15,5,null,null,null,{"$f":"الجدول1[[#This Row],[الوارد ]]-الجدول1[[#This Row],[الصادر ]]-الجدول1[[#This Row],[حجوزات]]-الجدول1[[#This Row],[راجع ]]","v":5},{"$f":"الجدول1[[#This Row],[السعر عراقي ]]*الجدول1[[#This Row],[الباقي ]]","v":76000},{"$f":"الجدول1[[#This Row],[السعر $]]*الجدول1[[#This Row],[الوارد ]]","v":40},{"$f":"الجدول1[[#This Row],[السعر البيع]]*الجدول1[[#This Row],[الصادر ]]","v":0},{"$f":"الجدول1[[#This Row],[السعر $]]*الجدول1[[#This Row],[راجع ]]","v":0},{"$f":"الجدول1[[#This Row],[جرد الوارد $]]-الجدول1[[#This Row],[مبلغ الراجع $]]","v":40},{"$f":"الجدول1[[#This Row],[السعر البيع]]*الجدول1[[#This Row],[الوارد ]]","v":75}]
[null,null,"اوتي اي اي جي",10,19000,20,6,null,null,null,{"$f":"الجدول1[[#This Row],[الوارد ]]-الجدول1[[#This Row],[الصادر ]]-الجدول1[[#This Row],[حجوزات]]-الجدول1[[#This Row],[راجع ]]","v":6},{"$f":"الجدول1[[#This Row],[السعر عراقي ]]*الجدول1[[#This Row],[الباقي ]]","v":114000},{"$f":"الجدول1[[#This Row],[السعر $]]*الجدول1[[#This Row],[الوارد ]]","v":60},{"$f":"الجدول1[[#This Row],[السعر البيع]]*الجدول1[[#This Row],[الصادر ]]","v":0},{"$f":"الجدول1[[#This Row],[السعر $]]*الجدول1[[#This Row],[راجع ]]","v":0},{"$f":"الجدول1[[#This Row],[جرد الوارد $]]-الجدول1[[#This Row],[مبلغ الراجع $]]","v":60},{"$f":"الجدول1[[#This Row],[السعر البيع]]*الجدول1[[#This Row],[الوارد ]]","v":120}]
[null,null,"اوتي محمول بروفي كوك",10.5,{"$f":"D69*1900","v":19950},20,10,null,null,null,{"$f":"الجدول1[[#This Row],[الوارد ]]-الجدول1[[#This Row],[الصادر ]]-الجدول1[[#This Row],[حجوزات]]-الجدول1[[#This Row],[راجع ]]","v":10},{"$f":"الجدول1[[#This Row],[السعر عراقي ]]*الجدول1[[#This Row],[الباقي ]]","v":199500},{"$f":"الجدول1[[#This Row],[السعر $]]*الجدول1[[#This Row],[الوارد ]]","v":105},{"$f":"الجدول1[[#This Row],[السعر البيع]]*الجدول1[[#This Row],[الصادر ]]","v":0},{"$f":"الجدول1[[#This Row],[السعر $]]*الجدول1[[#This Row],[راجع ]]","v":0},{"$f":"الجدول1[[#This Row],[جرد الوارد $]]-الجدول1[[#This Row],[مبلغ الراجع $]]","v":105},{"$f":"الجدول1[[#This Row],[السعر البيع]]*الجدول1[[#This Row],[الوارد ]]","v":200}]
[null,null,"اوتي راف 2200 واط وايرليس",13,24700,27,3,null,null,null,{"$f":"الجدول1[[#This Row],[الوارد ]]-الجدول1[[#This Row],[الصادر ]]-الجدول1[[#This Row],[حجوزات]]-الجدول1[[#This Row],[راجع ]]","v":3},{"$f":"الجدول1[[#This Row],[السعر عراقي ]]*الجدول1[[#This Row],[الباقي ]]","v":74100},{"$f":"الجدول1[[#This Row],[السعر $]]*الجدول1[[#This Row],[الوارد ]]","v":39},{"$f":"الجدول1[[#This Row],[السعر البيع]]*الجدول1[[#This Row],[الصادر ]]","v":0},{"$f":"الجدول1[[#This Row],[السعر $]]*الجدول1[[#This Row],[راجع ]]","v":0},{"$f":"الجدول1[[#This Row],[جرد الوارد $]]-الجدول1[[#This Row],[مبلغ الراجع $]]","v":39},{"$f":"الجدول1[[#This Row],[السعر البيع]]*الجدول1[[#This Row],[الوارد ]]","v":81}]
[null,null,"اوتي راف 2400 واط",14,26600,30,9,null,null,null,{"$f":"الجدول1[[#This Row],[الوارد ]]-الجدول1[[#This Row],[الصادر ]]-الجدول1[[#This Row],[حجوزات]]-الجدول1[[#This Row],[راجع ]]","v":9},{"$f":"الجدول1[[#This Row],[السعر عراقي ]]*الجدول1[[#This Row],[الباقي ]]","v":239400},{"$f":"الجدول1[[#This Row],[السعر $]]*الجدول1[[#This Row],[الوارد ]]","v":126},{"$f":"الجدول1[[#This Row],[السعر البيع]]*الجدول1[[#This Row],[الصادر ]]","v":0},{"$f":"الجدول1[[#This Row],[السعر $]]*الجدول1[[#This Row],[راجع ]]","v":0},{"$f":"الجدول1[[#This Row],[جرد الوارد $]]-الجدول1[[#This Row],[مبلغ الراجع $]]","v":126},{"$f":"الجدول1[[#This Row],[السعر البيع]]*الجدول1[[#This Row],[الوارد ]]","v":270}]
[null,null,"اوتي  نورفا بالة بنفسجي",40,76000,80,1,null,null,null,{"$f":"الجدول1[[#This Row],[الوارد ]]-الجدول1[[#This Row],[الصادر ]]-الجدول1[[#This Row],[حجوزات]]-الجدول1[[#This Row],[راجع ]]","v":1},{"$f":"الجدول1[[#This Row],[السعر عراقي ]]*الجدول1[[#This Row],[الباقي ]]","v":76000},{"$f":"الجدول1[[#This Row],[السعر $]]*الجدول1[[#This Row],[الوارد ]]","v":40},{"$f":"الجدول1[[#This Row],[السعر البيع]]*الجدول1[[#This Row],[الصادر ]]","v":0},{"$f":"الجدول1[[#This Row],[السعر $]]*الجدول1[[#This Row],[راجع ]]","v":0},{"$f":"الجدول1[[#This Row],[جرد الوارد $]]-الجدول1[[#This Row],[مبلغ الراجع $]]","v":40},{"$f":"الجدول1[[#This Row],[السعر البيع]]*الجدول1[[#This Row],[الوارد ]]","v":80}]
[null,null,"اوتي كوري عامودي اصلي ",35,66500,70,14,null,null,1,{"$f":"الجدول1[[#This Row],[الوارد ]]-الجدول1[[#This Row],[الصادر ]]-الجدول1[[#This Row],[حجوزات]]-الجدول1[[#This Row],[راجع ]]","v":13},{"$f":"الجدول1[[#This Row],[السعر عراقي ]]*الجدول1[[#This Row],[الباقي ]]","v":864500},{"$f":"الجدول1[[#This Row],[السعر $]]*الجدول1[[#This Row],[الوارد ]]","v":490},{"$f":"الجدول1[[#This Row],[الصادر ]]*الجدول1[[#This Row],[السعر عراقي ]]","v":0},{"$f":"الجدول1[[#This Row],[السعر $]]*الجدول1[[#This Row],[راجع ]]","v":35},null,{"$f":"الجدول1[[#This Row],[السعر البيع]]*الجدول1[[#This Row],[الوارد ]]","v":980}]
[null,null,"اوتي سلفر كرست عامودي ",27,51300,55,null,1,1,null,{"$f":"الجدول1[[#This Row],[الوارد ]]-الجدول1[[#This Row],[الصادر ]]-الجدول1[[#This Row],[حجوزات]]-الجدول1[[#This Row],[راجع ]]","v":-2},{"$f":"الجدول1[[#This Row],[السعر عراقي ]]*الجدول1[[#This Row],[الباقي ]]","v":-102600},{"$f":"الجدول1[[#This Row],[السعر $]]*الجدول1[[#This Row],[الوارد ]]","v":0},{"$f":"الجدول1[[#This Row],[الصادر ]]*الجدول1[[#This Row],[السعر عراقي ]]","v":51300},{"$f":"الجدول1[[#This Row],[السعر $]]*الجدول1[[#This Row],[راجع ]]","v":0},null,{"$f":"الجدول1[[#This Row],[السعر البيع]]*الجدول1[[#This Row],[الوارد ]]","v":0}]
[null,null,"سماعة دام فوكس ستاند",35,66500,80,4,null,1,null,{"$f":"الجدول1[[#This Row],[الوارد ]]-الجدول1[[#This Row],[الصادر ]]-الجدول1[[#This Row],[حجوزات]]-الجدول1[[#This Row],[راجع ]]","v":3},{"$f":"الجدول1[[#This Row],[السعر عراقي ]]*الجدول1[[#This Row],[الباقي ]]","v":199500},{"$f":"الجدول1[[#This Row],[السعر $]]*الجدول1[[#This Row],[الوارد ]]","v":140},{"$f":"الجدول1[[#This Row],[السعر البيع]]*الجدول1[[#This Row],[الصادر ]]","v":0},{"$f":"الجدول1[[#This Row],[السعر $]]*الجدول1[[#This Row],[راجع ]]","v":0},{"$f":"الجدول1[[#This Row],[جرد الوارد $]]-الجدول1[[#This Row],[مبلغ الراجع $]]","v":140},{"$f":"الجدول1[[#This Row],[السعر البيع]]*الجدول1[[#This Row],[الوارد ]]","v":320}]
[null,null,"شسوار فرجة سلفر كرست ",12,22800,25,4,null,null,null,{"$f":"الجدول1[[#This Row],[الوارد ]]-الجدول1[[#This Row],[الصادر ]]-الجدول1[[#This Row],[حجوزات]]-الجدول1[[#This Row],[راجع ]]","v":4},{"$f":"الجدول1[[#This Row],[السعر عراقي ]]*الجدول1[[#This Row],[الباقي ]]","v":91200},{"$f":"الجدول1[[#This Row],[السعر $]]*الجدول1[[#This Row],[الوارد ]]","v":48},{"$f":"الجدول1[[#This Row],[السعر البيع]]*الجدول1[[#This Row],[الصادر ]]","v":0},{"$f":"الجدول1[[#This Row],[السعر $]]*الجدول1[[#This Row],[راجع ]]","v":0},{"$f":"الجدول1[[#This Row],[جرد الوارد $]]-الجدول1[[#This Row],[مبلغ الراجع $]]","v":48},{"$f":"الجدول1[[#This Row],[السعر البيع]]*الجدول1[[#This Row],[الوارد ]]","v":100}]
[null,null,"قاصه صغيره ",13.5,25650,35,1,null,1,null,{"$f":"الجدول1[[#This Row],[الوارد ]]-الجدول1[[#This Row],[الصادر ]]-الجدول1[[#This Row],[حجوزات]]-الجدول1[[#This Row],[راجع ]]","v":0},{"$f":"الجدول1[[#This Row],[السعر عراقي ]]*الجدول1[[#This Row],[الباقي ]]","v":0},{"$f":"الجدول1[[#This Row],[السعر $]]*الجدول1[[#This Row],[الوارد ]]","v":13.5},{"$f":"الجدول1[[#This Row],[السعر البيع]]*الجدول1[[#This Row],[الصادر ]]","v":0},{"$f":"الجدول1[[#This Row],[السعر $]]*الجدول1[[#This Row],[راجع ]]","v":0},{"$f":"الجدول1[[#This Row],[جرد الوارد $]]-الجدول1[[#This Row],[مبلغ الراجع $]]","v":13.5},{"$f":"الجدول1[[#This Row],[السعر البيع]]*الجدول1[[#This Row],[الوارد ]]","v":35}]
[null,null,"كاوية انزو سيروم",12,22800,25,0,null,null,null,{"$f":"الجدول1[[#This Row],[الوارد ]]-الجدول1[[#This Row],[الصادر ]]-الجدول1[[#This Row],[حجوزات]]-الجدول1[[#This Row],[راجع ]]","v":0},{"$f":"الجدول1[[#This Row],[السعر عراقي ]]*الجدول1[[#This Row],[الباقي ]]","v":0},{"$f":"الجدول1[[#This Row],[السعر $]]*الجدول1[[#This Row],[الوارد ]]","v":0},{"$f":"الجدول1[[#This Row],[السعر البيع]]*الجدول1[[#This Row],[الصادر ]]","v":0},{"$f":"الجدول1[[#This Row],[السعر $]]*الجدول1[[#This Row],[راجع ]]","v":0},{"$f":"الجدول1[[#This Row],[جرد الوارد $]]-الجدول1[[#This Row],[مبلغ الراجع $]]","v":0},{"$f":"الجدول1[[#This Row],[السعر البيع]]*الجدول1[[#This Row],[الوارد ]]","v":0}]
[null,null,"هراسة سلفر ولف ",12.5,23750,25,12,2,null,null,{"$f":"الجدول1[[#This Row],[الوارد ]]-الجدول1[[#This Row],[الصادر ]]-الجدول1[[#This Row],[حجوزات]]-الجدول1[[#This Row],[راجع ]]","v":10},{"$f":"الجدول1[[#This Row],[السعر عراقي ]]*الجدول1[[#This Row],[الباقي ]]","v":237500},{"$f":"الجدول1[[#This Row],[السعر $]]*الجدول1[[#This Row],[الوارد ]]","v":150},{"$f":"الجدول1[[#This Row],[الصادر ]]*الجدول1[[#This Row],[السعر عراقي ]]","v":47500},{"$f":"الجدول1[[#This Row],[السعر $]]*الجدول1[[#This Row],[راجع ]]","v":0},null,{"$f":"الجدول1[[#This Row],[السعر البيع]]*الجدول1[[#This Row],[الوارد ]]","v":300}]
[null,null,"هراسة سوبر كرست ",9,17100,18,10,null,null,null,{"$f":"الجدول1[[#This Row],[الوارد ]]-الجدول1[[#This Row],[الصادر ]]-الجدول1[[#This Row],[حجوزات]]-الجدول1[[#This Row],[راجع ]]","v":10},{"$f":"الجدول1[[#This Row],[السعر عراقي ]]*الجدول1[[#This Row],[الباقي ]]","v":171000},{"$f":"الجدول1[[#This Row],[السعر $]]*الجدول1[[#This Row],[الوارد ]]","v":90},{"$f":"الجدول1[[#This Row],[الصادر ]]*الجدول1[[#This Row],[السعر عراقي ]]","v":0},{"$f":"الجدول1[[#This Row],[السعر $]]*الجدول1[[#This Row],[راجع ]]","v":0},null,{"$f":"الجدول1[[#This Row],[السعر البيع]]*الجدول1[[#This Row],[الوارد ]]","v":180}]
[null,null,"هراسة كولد كرست",7,13300,15,10,null,null,null,{"$f":"الجدول1[[#This Row],[الوارد ]]-الجدول1[[#This Row],[الصادر ]]-الجدول1[[#This Row],[حجوزات]]-الجدول1[[#This Row],[راجع ]]","v":10},{"$f":"الجدول1[[#This Row],[السعر عراقي ]]*الجدول1[[#This Row],[الباقي ]]","v":133000},{"$f":"الجدول1[[#This Row],[السعر $]]*الجدول1[[#This Row],[الوارد ]]","v":70},{"$f":"الجدول1[[#This Row],[الصادر ]]*الجدول1[[#This Row],[السعر عراقي ]]","v":0},{"$f":"الجدول1[[#This Row],[السعر $]]*الجدول1[[#This Row],[راجع ]]","v":0},null,{"$f":"الجدول1[[#This Row],[السعر البيع]]*الجدول1[[#This Row],[الوارد ]]","v":150}]
[null,null,"هراسة 3*1 ستيل",13,24700,25,4,null,null,null,{"$f":"الجدول1[[#This Row],[الوارد ]]-الجدول1[[#This Row],[الصادر ]]-الجدول1[[#This Row],[حجوزات]]-الجدول1[[#This Row],[راجع ]]","v":4},{"$f":"الجدول1[[#This Row],[السعر عراقي ]]*الجدول1[[#This Row],[الباقي ]]","v":98800},{"$f":"الجدول1[[#This Row],[السعر $]]*الجدول1[[#This Row],[الوارد ]]","v":52},{"$f":"الجدول1[[#This Row],[السعر البيع]]*الجدول1[[#This Row],[الصادر ]]","v":0},{"$f":"الجدول1[[#This Row],[السعر $]]*الجدول1[[#This Row],[راجع ]]","v":0},{"$f":"الجدول1[[#This Row],[جرد الوارد $]]-الجدول1[[#This Row],[مبلغ الراجع $]]","v":52},{"$f":"الجدول1[[#This Row],[السعر البيع]]*الجدول1[[#This Row],[الوارد ]]","v":100}]
[null,null,"غلاية راف كيج ",10,19000,20,5,null,null,null,{"$f":"الجدول1[[#This Row],[الوارد ]]-الجدول1[[#This Row],[الصادر ]]-الجدول1[[#This Row],[حجوزات]]-الجدول1[[#This Row],[راجع ]]","v":5},{"$f":"الجدول1[[#This Row],[السعر عراقي ]]*الجدول1[[#This Row],[الباقي ]]","v":95000},{"$f":"الجدول1[[#This Row],[السعر $]]*الجدول1[[#This Row],[الوارد ]]","v":50},{"$f":"الجدول1[[#This Row],[الصادر ]]*الجدول1[[#This Row],[السعر عراقي ]]","v":0},{"$f":"الجدول1[[#This Row],[السعر $]]*الجدول1[[#This Row],[راجع ]]","v":0},null,{"$f":"الجدول1[[#This Row],[السعر البيع]]*الجدول1[[#This Row],[الوارد ]]","v":100}]
[null,null,"غلاية بلاستك",4,7600,10,3,null,null,null,{"$f":"الجدول1[[#This Row],[الوارد ]]-الجدول1[[#This Row],[الصادر ]]-الجدول1[[#This Row],[حجوزات]]-الجدول1[[#This Row],[راجع ]]","v":3},{"$f":"الجدول1[[#This Row],[السعر عراقي ]]*الجدول1[[#This Row],[الباقي ]]","v":22800},{"$f":"الجدول1[[#This Row],[السعر $]]*الجدول1[[#This Row],[الوارد ]]","v":12},{"$f":"الجدول1[[#This Row],[الصادر ]]*الجدول1[[#This Row],[السعر عراقي ]]","v":0},{"$f":"الجدول1[[#This Row],[السعر $]]*الجدول1[[#This Row],[راجع ]]","v":0},null,{"$f":"الجدول1[[#This Row],[السعر البيع]]*الجدول1[[#This Row],[الوارد ]]","v":30}]
[null,null,"غلاية بومان",6,11400,13,2,null,null,null,{"$f":"الجدول1[[#This Row],[الوارد ]]-الجدول1[[#This Row],[الصادر ]]-الجدول1[[#This Row],[حجوزات]]-الجدول1[[#This Row],[راجع ]]","v":2},{"$f":"الجدول1[[#This Row],[السعر عراقي ]]*الجدول1[[#This Row],[الباقي ]]","v":22800},{"$f":"الجدول1[[#This Row],[السعر $]]*الجدول1[[#This Row],[الوارد ]]","v":12},{"$f":"الجدول1[[#This Row],[الصادر ]]*الجدول1[[#This Row],[السعر عراقي ]]","v":0},{"$f":"الجدول1[[#This Row],[السعر $]]*الجدول1[[#This Row],[راجع ]]","v":0},null,{"$f":"الجدول1[[#This Row],[السعر البيع]]*الجدول1[[#This Row],[الوارد ]]","v":26}]
[null,null,"غلاية راف كزاز ",7,13300,15,5,1,null,null,{"$f":"الجدول1[[#This Row],[الوارد ]]-الجدول1[[#This Row],[الصادر ]]-الجدول1[[#This Row],[حجوزات]]-الجدول1[[#This Row],[راجع ]]","v":4},{"$f":"الجدول1[[#This Row],[السعر عراقي ]]*الجدول1[[#This Row],[الباقي ]]","v":53200},{"$f":"الجدول1[[#This Row],[السعر $]]*الجدول1[[#This Row],[الوارد ]]","v":35},{"$f":"الجدول1[[#This Row],[السعر البيع]]*الجدول1[[#This Row],[الصادر ]]","v":15},{"$f":"الجدول1[[#This Row],[السعر $]]*الجدول1[[#This Row],[راجع ]]","v":0},{"$f":"الجدول1[[#This Row],[جرد الوارد $]]-الجدول1[[#This Row],[مبلغ الراجع $]]","v":35},{"$f":"الجدول1[[#This Row],[السعر البيع]]*الجدول1[[#This Row],[الوارد ]]","v":75}]
[null,null,"فنجان قهوة ",2.5,4750,5,125,2,null,null,{"$f":"الجدول1[[#This Row],[الوارد ]]-الجدول1[[#This Row],[الصادر ]]-الجدول1[[#This Row],[حجوزات]]-الجدول1[[#This Row],[راجع ]]","v":123},{"$f":"الجدول1[[#This Row],[السعر عراقي ]]*الجدول1[[#This Row],[الباقي ]]","v":584250},{"$f":"الجدول1[[#This Row],[السعر $]]*الجدول1[[#This Row],[الوارد ]]","v":312.5},{"$f":"الجدول1[[#This Row],[الصادر ]]*الجدول1[[#This Row],[السعر عراقي ]]","v":9500},{"$f":"الجدول1[[#This Row],[السعر $]]*الجدول1[[#This Row],[راجع ]]","v":0},null,{"$f":"الجدول1[[#This Row],[السعر البيع]]*الجدول1[[#This Row],[الوارد ]]","v":625}]
[null,null,"معصارة شحن ",7,13300,20,3,2,null,1,{"$f":"الجدول1[[#This Row],[الوارد ]]-الجدول1[[#This Row],[الصادر ]]-الجدول1[[#This Row],[حجوزات]]-الجدول1[[#This Row],[راجع ]]","v":0},{"$f":"الجدول1[[#This Row],[السعر عراقي ]]*الجدول1[[#This Row],[الباقي ]]","v":0},{"$f":"الجدول1[[#This Row],[السعر $]]*الجدول1[[#This Row],[الوارد ]]","v":21},{"$f":"الجدول1[[#This Row],[الصادر ]]*الجدول1[[#This Row],[السعر عراقي ]]","v":26600},{"$f":"الجدول1[[#This Row],[السعر $]]*الجدول1[[#This Row],[راجع ]]","v":7},null,{"$f":"الجدول1[[#This Row],[السعر البيع]]*الجدول1[[#This Row],[الوارد ]]","v":60}]
[null,null,"معصارة راف بطيئة ",40,76000,80,3,null,null,null,{"$f":"الجدول1[[#This Row],[الوارد ]]-الجدول1[[#This Row],[الصادر ]]-الجدول1[[#This Row],[حجوزات]]-الجدول1[[#This Row],[راجع ]]","v":3},{"$f":"الجدول1[[#This Row],[السعر عراقي ]]*الجدول1[[#This Row],[الباقي ]]","v":228000},{"$f":"الجدول1[[#This Row],[السعر $]]*الجدول1[[#This Row],[الوارد ]]","v":120},{"$f":"الجدول1[[#This Row],[السعر البيع]]*الجدول1[[#This Row],[الصادر ]]","v":0},{"$f":"الجدول1[[#This Row],[السعر $]]*الجدول1[[#This Row],[راجع ]]","v":0},{"$f":"الجدول1[[#This Row],[جرد الوارد $]]-الجدول1[[#This Row],[مبلغ الراجع $]]","v":120},{"$f":"الجدول1[[#This Row],[السعر البيع]]*الجدول1[[#This Row],[الوارد ]]","v":240}]
[null,null,"حافظة اكل ",10.5,19950,20,7,null,null,null,{"$f":"الجدول1[[#This Row],[الوارد ]]-الجدول1[[#This Row],[الصادر ]]-الجدول1[[#This Row],[حجوزات]]-الجدول1[[#This Row],[راجع ]]","v":7},{"$f":"الجدول1[[#This Row],[السعر عراقي ]]*الجدول1[[#This Row],[الباقي ]]","v":139650},{"$f":"الجدول1[[#This Row],[السعر $]]*الجدول1[[#This Row],[الوارد ]]","v":73.5},{"$f":"الجدول1[[#This Row],[السعر البيع]]*الجدول1[[#This Row],[الصادر ]]","v":0},{"$f":"الجدول1[[#This Row],[السعر $]]*الجدول1[[#This Row],[راجع ]]","v":0},{"$f":"الجدول1[[#This Row],[جرد الوارد $]]-الجدول1[[#This Row],[مبلغ الراجع $]]","v":73.5},{"$f":"الجدول1[[#This Row],[السعر البيع]]*الجدول1[[#This Row],[الوارد ]]","v":140}]
[null,null,"ترمز ",7.5,14250,13,2,null,null,null,{"$f":"الجدول1[[#This Row],[الوارد ]]-الجدول1[[#This Row],[الصادر ]]-الجدول1[[#This Row],[حجوزات]]-الجدول1[[#This Row],[راجع ]]","v":2},{"$f":"الجدول1[[#This Row],[السعر عراقي ]]*الجدول1[[#This Row],[الباقي ]]","v":28500},{"$f":"الجدول1[[#This Row],[السعر $]]*الجدول1[[#This Row],[الوارد ]]","v":15},{"$f":"الجدول1[[#This Row],[السعر البيع]]*الجدول1[[#This Row],[الصادر ]]","v":0},{"$f":"الجدول1[[#This Row],[السعر $]]*الجدول1[[#This Row],[راجع ]]","v":0},{"$f":"الجدول1[[#This Row],[جرد الوارد $]]-الجدول1[[#This Row],[مبلغ الراجع $]]","v":15},{"$f":"الجدول1[[#This Row],[السعر البيع]]*الجدول1[[#This Row],[الوارد ]]","v":26}]
[null,null,"كابسة صاج تزوي ",23,43700,45,1,null,null,null,{"$f":"الجدول1[[#This Row],[الوارد ]]-الجدول1[[#This Row],[الصادر ]]-الجدول1[[#This Row],[حجوزات]]-الجدول1[[#This Row],[راجع ]]","v":1},{"$f":"الجدول1[[#This Row],[السعر عراقي ]]*الجدول1[[#This Row],[الباقي ]]","v":43700},{"$f":"الجدول1[[#This Row],[السعر $]]*الجدول1[[#This Row],[الوارد ]]","v":23},{"$f":"الجدول1[[#This Row],[السعر البيع]]*الجدول1[[#This Row],[الصادر ]]","v":0},{"$f":"الجدول1[[#This Row],[السعر $]]*الجدول1[[#This Row],[راجع ]]","v":0},{"$f":"الجدول1[[#This Row],[جرد الوارد $]]-الجدول1[[#This Row],[مبلغ الراجع $]]","v":23},{"$f":"الجدول1[[#This Row],[السعر البيع]]*الجدول1[[#This Row],[الوارد ]]","v":45}]
[null,null,"معصارة سريعة بومان ",17,32300,35,1,null,null,null,{"$f":"الجدول1[[#This Row],[الوارد ]]-الجدول1[[#This Row],[الصادر ]]-الجدول1[[#This Row],[حجوزات]]-الجدول1[[#This Row],[راجع ]]","v":1},{"$f":"الجدول1[[#This Row],[السعر عراقي ]]*الجدول1[[#This Row],[الباقي ]]","v":32300},{"$f":"الجدول1[[#This Row],[السعر $]]*الجدول1[[#This Row],[الوارد ]]","v":17},{"$f":"الجدول1[[#This Row],[السعر البيع]]*الجدول1[[#This Row],[الصادر ]]","v":0},{"$f":"الجدول1[[#This Row],[السعر $]]*الجدول1[[#This Row],[راجع ]]","v":0},{"$f":"الجدول1[[#This Row],[جرد الوارد $]]-الجدول1[[#This Row],[مبلغ الراجع $]]","v":17},{"$f":"الجدول1[[#This Row],[السعر البيع]]*الجدول1[[#This Row],[الوارد ]]","v":35}]
[null,null,"بلور سحب كبير ريوبي",20,38000,40,3,null,null,null,{"$f":"الجدول1[[#This Row],[الوارد ]]-الجدول1[[#This Row],[الصادر ]]-الجدول1[[#This Row],[حجوزات]]-الجدول1[[#This Row],[راجع ]]","v":3},{"$f":"الجدول1[[#This Row],[السعر عراقي ]]*الجدول1[[#This Row],[الباقي ]]","v":114000},{"$f":"الجدول1[[#This Row],[السعر $]]*الجدول1[[#This Row],[الوارد ]]","v":60},{"$f":"الجدول1[[#This Row],[الصادر ]]*الجدول1[[#This Row],[السعر عراقي ]]","v":0},{"$f":"الجدول1[[#This Row],[السعر $]]*الجدول1[[#This Row],[راجع ]]","v":0},null,{"$f":"الجدول1[[#This Row],[السعر البيع]]*الجدول1[[#This Row],[الوارد ]]","v":120}]
[null,null,"بلور هواء ",7,13300,15,1,null,1,null,{"$f":"الجدول1[[#This Row],[الوارد ]]-الجدول1[[#This Row],[الصادر ]]-الجدول1[[#This Row],[حجوزات]]-الجدول1[[#This Row],[راجع ]]","v":0},{"$f":"الجدول1[[#This Row],[السعر عراقي ]]*الجدول1[[#This Row],[الباقي ]]","v":0},{"$f":"الجدول1[[#This Row],[السعر $]]*الجدول1[[#This Row],[الوارد ]]","v":7},{"$f":"الجدول1[[#This Row],[الصادر ]]*الجدول1[[#This Row],[السعر عراقي ]]","v":0},{"$f":"الجدول1[[#This Row],[السعر $]]*الجدول1[[#This Row],[راجع ]]","v":0},null,{"$f":"الجدول1[[#This Row],[السعر البيع]]*الجدول1[[#This Row],[الوارد ]]","v":15}]
[null,null,"ماطور بارك سايد نحاس بوستر ",35,66500,70,1,null,null,null,{"$f":"الجدول1[[#This Row],[الوارد ]]-الجدول1[[#This Row],[الصادر ]]-الجدول1[[#This Row],[حجوزات]]-الجدول1[[#This Row],[راجع ]]","v":1},{"$f":"الجدول1[[#This Row],[السعر عراقي ]]*الجدول1[[#This Row],[الباقي ]]","v":66500},{"$f":"الجدول1[[#This Row],[السعر $]]*الجدول1[[#This Row],[الوارد ]]","v":35},{"$f":"الجدول1[[#This Row],[الصادر ]]*الجدول1[[#This Row],[السعر عراقي ]]","v":0},{"$f":"الجدول1[[#This Row],[السعر $]]*الجدول1[[#This Row],[راجع ]]","v":0},null,{"$f":"الجدول1[[#This Row],[السعر البيع]]*الجدول1[[#This Row],[الوارد ]]","v":70}]
[null,null,"ماطور لايكي جيرمني نحاس بوستر ",38,72200,75,4,null,null,null,{"$f":"الجدول1[[#This Row],[الوارد ]]-الجدول1[[#This Row],[الصادر ]]-الجدول1[[#This Row],[حجوزات]]-الجدول1[[#This Row],[راجع ]]","v":4},{"$f":"الجدول1[[#This Row],[السعر عراقي ]]*الجدول1[[#This Row],[الباقي ]]","v":288800},{"$f":"الجدول1[[#This Row],[السعر $]]*الجدول1[[#This Row],[الوارد ]]","v":152},{"$f":"الجدول1[[#This Row],[الصادر ]]*الجدول1[[#This Row],[السعر عراقي ]]","v":0},{"$f":"الجدول1[[#This Row],[السعر $]]*الجدول1[[#This Row],[راجع ]]","v":0},null,{"$f":"الجدول1[[#This Row],[السعر البيع]]*الجدول1[[#This Row],[الوارد ]]","v":300}]
[null,null,"ماطور اوزتو بوستر نحاس ",32,60800,65,9,null,null,null,{"$f":"الجدول1[[#This Row],[الوارد ]]-الجدول1[[#This Row],[الصادر ]]-الجدول1[[#This Row],[حجوزات]]-الجدول1[[#This Row],[راجع ]]","v":9},{"$f":"الجدول1[[#This Row],[السعر عراقي ]]*الجدول1[[#This Row],[الباقي ]]","v":547200},{"$f":"الجدول1[[#This Row],[السعر $]]*الجدول1[[#This Row],[الوارد ]]","v":288},{"$f":"الجدول1[[#This Row],[الصادر ]]*الجدول1[[#This Row],[السعر عراقي ]]","v":0},{"$f":"الجدول1[[#This Row],[السعر $]]*الجدول1[[#This Row],[راجع ]]","v":0},null,{"$f":"الجدول1[[#This Row],[السعر البيع]]*الجدول1[[#This Row],[الوارد ]]","v":585}]
[null,null,"كبان ليزري 16 خط ستاند",48,91200,95,23,null,null,null,{"$f":"الجدول1[[#This Row],[الوارد ]]-الجدول1[[#This Row],[الصادر ]]-الجدول1[[#This Row],[حجوزات]]-الجدول1[[#This Row],[راجع ]]","v":23},{"$f":"الجدول1[[#This Row],[السعر عراقي ]]*الجدول1[[#This Row],[الباقي ]]","v":2097600},{"$f":"الجدول1[[#This Row],[السعر $]]*الجدول1[[#This Row],[الوارد ]]","v":1104},{"$f":"الجدول1[[#This Row],[الصادر ]]*الجدول1[[#This Row],[السعر عراقي ]]","v":0},{"$f":"الجدول1[[#This Row],[السعر $]]*الجدول1[[#This Row],[راجع ]]","v":0},null,{"$f":"الجدول1[[#This Row],[السعر البيع]]*الجدول1[[#This Row],[الوارد ]]","v":2185}]
[null,null,"ماكنة لحيم باركساية صغبير",33,62700,65,6,null,null,null,{"$f":"الجدول1[[#This Row],[الوارد ]]-الجدول1[[#This Row],[الصادر ]]-الجدول1[[#This Row],[حجوزات]]-الجدول1[[#This Row],[راجع ]]","v":6},{"$f":"الجدول1[[#This Row],[السعر عراقي ]]*الجدول1[[#This Row],[الباقي ]]","v":376200},{"$f":"الجدول1[[#This Row],[السعر $]]*الجدول1[[#This Row],[الوارد ]]","v":198},{"$f":"الجدول1[[#This Row],[السعر البيع]]*الجدول1[[#This Row],[الصادر ]]","v":0},{"$f":"الجدول1[[#This Row],[السعر $]]*الجدول1[[#This Row],[راجع ]]","v":0},{"$f":"الجدول1[[#This Row],[جرد الوارد $]]-الجدول1[[#This Row],[مبلغ الراجع $]]","v":198},{"$f":"الجدول1[[#This Row],[السعر البيع]]*الجدول1[[#This Row],[الوارد ]]","v":390}]
[null,null,"عجانة سلفر كرست 6.5 لتر ",50,{"$f":"D101*1900","v":95000},115,1,null,null,null,{"$f":"الجدول1[[#This Row],[الوارد ]]-الجدول1[[#This Row],[الصادر ]]-الجدول1[[#This Row],[حجوزات]]-الجدول1[[#This Row],[راجع ]]","v":1},{"$f":"الجدول1[[#This Row],[السعر عراقي ]]*الجدول1[[#This Row],[الباقي ]]","v":95000},{"$f":"الجدول1[[#This Row],[السعر $]]*الجدول1[[#This Row],[الوارد ]]","v":50},{"$f":"الجدول1[[#This Row],[الصادر ]]*الجدول1[[#This Row],[السعر عراقي ]]","v":0},{"$f":"الجدول1[[#This Row],[السعر $]]*الجدول1[[#This Row],[راجع ]]","v":0},null,{"$f":"الجدول1[[#This Row],[السعر البيع]]*الجدول1[[#This Row],[الوارد ]]","v":115}]
[null,null,"عجانة كجوت 6.5 لتر",40,76000,80,3,2,1,null,{"$f":"الجدول1[[#This Row],[الوارد ]]-الجدول1[[#This Row],[الصادر ]]-الجدول1[[#This Row],[حجوزات]]-الجدول1[[#This Row],[راجع ]]","v":0},{"$f":"الجدول1[[#This Row],[السعر عراقي ]]*الجدول1[[#This Row],[الباقي ]]","v":0},{"$f":"الجدول1[[#This Row],[السعر $]]*الجدول1[[#This Row],[الوارد ]]","v":120},{"$f":"الجدول1[[#This Row],[السعر البيع]]*الجدول1[[#This Row],[الصادر ]]","v":160},{"$f":"الجدول1[[#This Row],[السعر $]]*الجدول1[[#This Row],[راجع ]]","v":0},{"$f":"الجدول1[[#This Row],[جرد الوارد $]]-الجدول1[[#This Row],[مبلغ الراجع $]]","v":120},{"$f":"الجدول1[[#This Row],[السعر البيع]]*الجدول1[[#This Row],[الوارد ]]","v":240}]
[null,null,"اوفن 60 لتر صيني اصلي",55,104500,115,1,1,1,null,{"$f":"الجدول1[[#This Row],[الوارد ]]-الجدول1[[#This Row],[الصادر ]]-الجدول1[[#This Row],[حجوزات]]-الجدول1[[#This Row],[راجع ]]","v":-1},{"$f":"الجدول1[[#This Row],[السعر عراقي ]]*الجدول1[[#This Row],[الباقي ]]","v":-104500},{"$f":"الجدول1[[#This Row],[السعر $]]*الجدول1[[#This Row],[الوارد ]]","v":55},{"$f":"الجدول1[[#This Row],[الصادر ]]*الجدول1[[#This Row],[السعر عراقي ]]","v":104500},{"$f":"الجدول1[[#This Row],[السعر $]]*الجدول1[[#This Row],[راجع ]]","v":0},null,{"$f":"الجدول1[[#This Row],[السعر البيع]]*الجدول1[[#This Row],[الوارد ]]","v":115}]
[null,null,"اوفن 3*1",17,32300,35,4,null,null,null,{"$f":"الجدول1[[#This Row],[الوارد ]]-الجدول1[[#This Row],[الصادر ]]-الجدول1[[#This Row],[حجوزات]]-الجدول1[[#This Row],[راجع ]]","v":4},{"$f":"الجدول1[[#This Row],[السعر عراقي ]]*الجدول1[[#This Row],[الباقي ]]","v":129200},{"$f":"الجدول1[[#This Row],[السعر $]]*الجدول1[[#This Row],[الوارد ]]","v":68},{"$f":"الجدول1[[#This Row],[السعر البيع]]*الجدول1[[#This Row],[الصادر ]]","v":0},{"$f":"الجدول1[[#This Row],[السعر $]]*الجدول1[[#This Row],[راجع ]]","v":0},{"$f":"الجدول1[[#This Row],[جرد الوارد $]]-الجدول1[[#This Row],[مبلغ الراجع $]]","v":68},{"$f":"الجدول1[[#This Row],[السعر البيع]]*الجدول1[[#This Row],[الوارد ]]","v":140}]
[null,null,"مايكرو 20 لتر جنل صيني",44,83600,80,5,null,null,null,{"$f":"الجدول1[[#This Row],[الوارد ]]-الجدول1[[#This Row],[الصادر ]]-الجدول1[[#This Row],[حجوزات]]-الجدول1[[#This Row],[راجع ]]","v":5},{"$f":"الجدول1[[#This Row],[السعر عراقي ]]*الجدول1[[#This Row],[الباقي ]]","v":418000},{"$f":"الجدول1[[#This Row],[السعر $]]*الجدول1[[#This Row],[الوارد ]]","v":220},{"$f":"الجدول1[[#This Row],[السعر البيع]]*الجدول1[[#This Row],[الصادر ]]","v":0},{"$f":"الجدول1[[#This Row],[السعر $]]*الجدول1[[#This Row],[راجع ]]","v":0},{"$f":"الجدول1[[#This Row],[جرد الوارد $]]-الجدول1[[#This Row],[مبلغ الراجع $]]","v":220},{"$f":"الجدول1[[#This Row],[السعر البيع]]*الجدول1[[#This Row],[الوارد ]]","v":400}]
[null,null,"مايكرو 25 لتر لمس شاشه ",55,104500,120,3,null,null,null,{"$f":"الجدول1[[#This Row],[الوارد ]]-الجدول1[[#This Row],[الصادر ]]-الجدول1[[#This Row],[حجوزات]]-الجدول1[[#This Row],[راجع ]]","v":3},{"$f":"الجدول1[[#This Row],[السعر عراقي ]]*الجدول1[[#This Row],[الباقي ]]","v":313500},{"$f":"الجدول1[[#This Row],[السعر $]]*الجدول1[[#This Row],[الوارد ]]","v":165},{"$f":"الجدول1[[#This Row],[السعر البيع]]*الجدول1[[#This Row],[الصادر ]]","v":0},{"$f":"الجدول1[[#This Row],[السعر $]]*الجدول1[[#This Row],[راجع ]]","v":0},{"$f":"الجدول1[[#This Row],[جرد الوارد $]]-الجدول1[[#This Row],[مبلغ الراجع $]]","v":165},{"$f":"الجدول1[[#This Row],[السعر البيع]]*الجدول1[[#This Row],[الوارد ]]","v":360}]
[null,null,null,null,0,null,null,null,null,null,{"$f":"الجدول1[[#This Row],[الوارد ]]-الجدول1[[#This Row],[الصادر ]]-الجدول1[[#This Row],[حجوزات]]-الجدول1[[#This Row],[راجع ]]","v":0},{"$f":"الجدول1[[#This Row],[السعر عراقي ]]*الجدول1[[#This Row],[الباقي ]]","v":0},{"$f":"الجدول1[[#This Row],[السعر $]]*الجدول1[[#This Row],[الوارد ]]","v":0},{"$f":"الجدول1[[#This Row],[الصادر ]]*الجدول1[[#This Row],[السعر عراقي ]]","v":0},{"$f":"الجدول1[[#This Row],[السعر $]]*الجدول1[[#This Row],[راجع ]]","v":0},null,{"$f":"الجدول1[[#This Row],[السعر البيع]]*الجدول1[[#This Row],[الوارد ]]","v":0}]
[null,null,null,null,0,null,null,null,null,null,{"$f":"الجدول1[[#This Row],[الوارد ]]-الجدول1[[#This Row],[الصادر ]]-الجدول1[[#This Row],[حجوزات]]-الجدول1[[#This Row],[راجع ]]","v":0},{"$f":"الجدول1[[#This Row],[السعر عراقي ]]*الجدول1[[#This Row],[الباقي ]]","v":0},{"$f":"الجدول1[[#This Row],[السعر $]]*الجدول1[[#This Row],[الوارد ]]","v":0},{"$f":"الجدول1[[#This Row],[الصادر ]]*الجدول1[[#This Row],[السعر عراقي ]]","v":0},{"$f":"الجدول1[[#This Row],[السعر $]]*الجدول1[[#This Row],[راجع ]]","v":0},null,{"$f":"الجدول1[[#This Row],[السعر البيع]]*الجدول1[[#This Row],[الوارد ]]","v":0}]
[null,null,null,null,0,null,null,null,null,null,{"$f":"الجدول1[[#This Row],[الوارد ]]-الجدول1[[#This Row],[الصادر ]]-الجدول1[[#This Row],[حجوزات]]-الجدول1[[#This Row],[راجع ]]","v":0},{"$f":"الجدول1[[#This Row],[السعر عراقي ]]*الجدول1[[#This Row],[الباقي ]]","v":0},{"$f":"الجدول1[[#This Row],[السعر $]]*الجدول1[[#This Row],[الوارد ]]","v":0},{"$f":"الجدول1[[#This Row],[الصادر ]]*الجدول1[[#This Row],[السعر عراقي ]]","v":0},{"$f":"الجدول1[[#This Row],[السعر $]]*الجدول1[[#This Row],[راجع ]]","v":0},null,{"$f":"الجدول1[[#This Row],[السعر البيع]]*الجدول1[[#This Row],[الوارد ]]","v":0}]
[null,null,null,null,0,null,null,null,null,null,{"$f":"الجدول1[[#This Row],[الوارد ]]-الجدول1[[#This Row],[الصادر ]]-الجدول1[[#This Row],[حجوزات]]-الجدول1[[#This Row],[راجع ]]","v":0},{"$f":"الجدول1[[#This Row],[السعر عراقي ]]*الجدول1[[#This Row],[الباقي ]]","v":0},{"$f":"الجدول1[[#This Row],[السعر $]]*الجدول1[[#This Row],[الوارد ]]","v":0},{"$f":"الجدول1[[#This Row],[الصادر ]]*الجدول1[[#This Row],[السعر عراقي ]]","v":0},{"$f":"الجدول1[[#This Row],[السعر $]]*الجدول1[[#This Row],[راجع ]]","v":0},null,{"$f":"الجدول1[[#This Row],[السعر البيع]]*الجدول1[[#This Row],[الوارد ]]","v":0}]
[null,null,"شافطة دهون بشرة ",4,7600,10,5,null,null,null,{"$f":"الجدول1[[#This Row],[الوارد ]]-الجدول1[[#This Row],[الصادر ]]-الجدول1[[#This Row],[حجوزات]]-الجدول1[[#This Row],[راجع ]]","v":5},{"$f":"الجدول1[[#This Row],[السعر عراقي ]]*الجدول1[[#This Row],[الباقي ]]","v":38000},{"$f":"الجدول1[[#This Row],[السعر $]]*الجدول1[[#This Row],[الوارد ]]","v":20},{"$f":"الجدول1[[#This Row],[الصادر ]]*الجدول1[[#This Row],[السعر عراقي ]]","v":0},{"$f":"الجدول1[[#This Row],[السعر $]]*الجدول1[[#This Row],[راجع ]]","v":0},null,{"$f":"الجدول1[[#This Row],[السعر البيع]]*الجدول1[[#This Row],[الوارد ]]","v":50}]
[null,null,"صابون ",1.5,2850,3,74,6,null,null,{"$f":"الجدول1[[#This Row],[الوارد ]]-الجدول1[[#This Row],[الصادر ]]-الجدول1[[#This Row],[حجوزات]]-الجدول1[[#This Row],[راجع ]]","v":68},{"$f":"الجدول1[[#This Row],[السعر عراقي ]]*الجدول1[[#This Row],[الباقي ]]","v":193800},{"$f":"الجدول1[[#This Row],[السعر $]]*الجدول1[[#This Row],[الوارد ]]","v":111},{"$f":"الجدول1[[#This Row],[الصادر ]]*الجدول1[[#This Row],[السعر عراقي ]]","v":17100},{"$f":"الجدول1[[#This Row],[السعر $]]*الجدول1[[#This Row],[راجع ]]","v":0},null,{"$f":"الجدول1[[#This Row],[السعر البيع]]*الجدول1[[#This Row],[الوارد ]]","v":222}]
[null,null,"كريم تجاعيد الوجه",2,3800,4.5,17,null,null,null,{"$f":"الجدول1[[#This Row],[الوارد ]]-الجدول1[[#This Row],[الصادر ]]-الجدول1[[#This Row],[حجوزات]]-الجدول1[[#This Row],[راجع ]]","v":17},{"$f":"الجدول1[[#This Row],[السعر عراقي ]]*الجدول1[[#This Row],[الباقي ]]","v":64600},{"$f":"الجدول1[[#This Row],[السعر $]]*الجدول1[[#This Row],[الوارد ]]","v":34},{"$f":"الجدول1[[#This Row],[الصادر ]]*الجدول1[[#This Row],[السعر عراقي ]]","v":0},{"$f":"الجدول1[[#This Row],[السعر $]]*الجدول1[[#This Row],[راجع ]]","v":0},null,{"$f":"الجدول1[[#This Row],[السعر البيع]]*الجدول1[[#This Row],[الوارد ]]","v":76.5}]
[null,null,"كريم حليب الحمار للجسم كامل ",1.5,2850,3.5,7,1,null,null,{"$f":"الجدول1[[#This Row],[الوارد ]]-الجدول1[[#This Row],[الصادر ]]-الجدول1[[#This Row],[حجوزات]]-الجدول1[[#This Row],[راجع ]]","v":6},{"$f":"الجدول1[[#This Row],[السعر عراقي ]]*الجدول1[[#This Row],[الباقي ]]","v":17100},{"$f":"الجدول1[[#This Row],[السعر $]]*الجدول1[[#This Row],[الوارد ]]","v":10.5},{"$f":"الجدول1[[#This Row],[الصادر ]]*الجدول1[[#This Row],[السعر عراقي ]]","v":2850},{"$f":"الجدول1[[#This Row],[السعر $]]*الجدول1[[#This Row],[راجع ]]","v":0},null,{"$f":"الجدول1[[#This Row],[السعر البيع]]*الجدول1[[#This Row],[الوارد ]]","v":24.5}]
[null,null,null,null,0,null,null,null,null,null,{"$f":"الجدول1[[#This Row],[الوارد ]]-الجدول1[[#This Row],[الصادر ]]-الجدول1[[#This Row],[حجوزات]]-الجدول1[[#This Row],[راجع ]]","v":0},{"$f":"الجدول1[[#This Row],[السعر عراقي ]]*الجدول1[[#This Row],[الباقي ]]","v":0},{"$f":"الجدول1[[#This Row],[السعر $]]*الجدول1[[#This Row],[الوارد ]]","v":0},{"$f":"الجدول1[[#This Row],[الصادر ]]*الجدول1[[#This Row],[السعر عراقي ]]","v":0},{"$f":"الجدول1[[#This Row],[السعر $]]*الجدول1[[#This Row],[راجع ]]","v":0},null,{"$f":"الجدول1[[#This Row],[السعر البيع]]*الجدول1[[#This Row],[الوارد ]]","v":0}]
[null,null,null,null,0,null,null,null,null,null,{"$f":"الجدول1[[#This Row],[الوارد ]]-الجدول1[[#This Row],[الصادر ]]-الجدول1[[#This Row],[حجوزات]]-الجدول1[[#This Row],[راجع ]]","v":0},{"$f":"الجدول1[[#This Row],[السعر عراقي ]]*الجدول1[[#This Row],[الباقي ]]","v":0},{"$f":"الجدول1[[#This Row],[السعر $]]*الجدول1[[#This Row],[الوارد ]]","v":0},{"$f":"الجدول1[[#This Row],[الصادر ]]*الجدول1[[#This Row],[السعر عراقي ]]","v":0},{"$f":"الجدول1[[#This Row],[السعر $]]*الجدول1[[#This Row],[راجع ]]","v":0},null,{"$f":"الجدول1[[#This Row],[السعر البيع]]*الجدول1[[#This Row],[الوارد ]]","v":0}]
[null,null,null,null,0,null,null,null,null,null,{"$f":"الجدول1[[#This Row],[الوارد ]]-الجدول1[[#This Row],[الصادر ]]-الجدول1[[#This Row],[حجوزات]]-الجدول1[[#This Row],[راجع ]]","v":0},{"$f":"الجدول1[[#This Row],[السعر عراقي ]]*الجدول1[[#This Row],[الباقي ]]","v":0},{"$f":"الجدول1[[#This Row],[السعر $]]*الجدول1[[#This Row],[الوارد ]]","v":0},{"$f":"الجدول1[[#This Row],[الصادر ]]*الجدول1[[#This Row],[السعر عراقي ]]","v":0},{"$f":"الجدول1[[#This Row],[السعر $]]*الجدول1[[#This Row],[راجع ]]","v":0},null,{"$f":"الجدول1[[#This Row],[السعر البيع]]*الجدول1[[#This Row],[الوارد ]]","v":0}]
[null,null,null,null,0,null,null,null,null,null,{"$f":"الجدول1[[#This Row],[الوارد ]]-الجدول1[[#This Row],[الصادر ]]-الجدول1[[#This Row],[حجوزات]]-الجدول1[[#This Row],[راجع ]]","v":0},{"$f":"الجدول1[[#This Row],[السعر عراقي ]]*الجدول1[[#This Row],[الباقي ]]","v":0},{"$f":"الجدول1[[#This Row],[السعر $]]*الجدول1[[#This Row],[الوارد ]]","v":0},{"$f":"الجدول1[[#This Row],[الصادر ]]*الجدول1[[#This Row],[السعر عراقي ]]","v":0},{"$f":"الجدول1[[#This Row],[السعر $]]*الجدول1[[#This Row],[راجع ]]","v":0},null,{"$f":"الجدول1[[#This Row],[السعر البيع]]*الجدول1[[#This Row],[الوارد ]]","v":0}]
[null,null,null,null,0,null,null,null,null,null,{"$f":"الجدول1[[#This Row],[الوارد ]]-الجدول1[[#This Row],[الصادر ]]-الجدول1[[#This Row],[حجوزات]]-الجدول1[[#This Row],[راجع ]]","v":0},{"$f":"الجدول1[[#This Row],[السعر عراقي ]]*الجدول1[[#This Row],[الباقي ]]","v":0},{"$f":"الجدول1[[#This Row],[السعر $]]*الجدول1[[#This Row],[الوارد ]]","v":0},{"$f":"الجدول1[[#This Row],[الصادر ]]*الجدول1[[#This Row],[السعر عراقي ]]","v":0},{"$f":"الجدول1[[#This Row],[السعر $]]*الجدول1[[#This Row],[راجع ]]","v":0},null,{"$f":"الجدول1[[#This Row],[السعر البيع]]*الجدول1[[#This Row],[الوارد ]]","v":0}]
[null,null,null,null,0,null,null,null,null,null,{"$f":"الجدول1[[#This Row],[الوارد ]]-الجدول1[[#This Row],[الصادر ]]-الجدول1[[#This Row],[حجوزات]]-الجدول1[[#This Row],[راجع ]]","v":0},{"$f":"الجدول1[[#This Row],[السعر عراقي ]]*الجدول1[[#This Row],[الباقي ]]","v":0},{"$f":"الجدول1[[#This Row],[السعر $]]*الجدول1[[#This Row],[الوارد ]]","v":0},{"$f":"الجدول1[[#This Row],[الصادر ]]*الجدول1[[#This Row],[السعر عراقي ]]","v":0},{"$f":"الجدول1[[#This Row],[السعر $]]*الجدول1[[#This Row],[راجع ]]","v":0},null,{"$f":"الجدول1[[#This Row],[السعر البيع]]*الجدول1[[#This Row],[الوارد ]]","v":0}]
[null,null,null,null,0,null,null,null,null,null,{"$f":"الجدول1[[#This Row],[الوارد ]]-الجدول1[[#This Row],[الصادر ]]-الجدول1[[#This Row],[حجوزات]]-الجدول1[[#This Row],[راجع ]]","v":0},{"$f":"الجدول1[[#This Row],[السعر عراقي ]]*الجدول1[[#This Row],[الباقي ]]","v":0},{"$f":"الجدول1[[#This Row],[السعر $]]*الجدول1[[#This Row],[الوارد ]]","v":0},{"$f":"الجدول1[[#This Row],[الصادر ]]*الجدول1[[#This Row],[السعر عراقي ]]","v":0},{"$f":"الجدول1[[#This Row],[السعر $]]*الجدول1[[#This Row],[راجع ]]","v":0},null,{"$f":"الجدول1[[#This Row],[السعر البيع]]*الجدول1[[#This Row],[الوارد ]]","v":0}]
[null,null,null,null,0,null,null,null,null,null,{"$f":"الجدول1[[#This Row],[الوارد ]]-الجدول1[[#This Row],[الصادر ]]-الجدول1[[#This Row],[حجوزات]]-الجدول1[[#This Row],[راجع ]]","v":0},{"$f":"الجدول1[[#This Row],[السعر عراقي ]]*الجدول1[[#This Row],[الباقي ]]","v":0},{"$f":"الجدول1[[#This Row],[السعر $]]*الجدول1[[#This Row],[الوارد ]]","v":0},{"$f":"الجدول1[[#This Row],[الصادر ]]*الجدول1[[#This Row],[السعر عراقي ]]","v":0},{"$f":"الجدول1[[#This Row],[السعر $]]*الجدول1[[#This Row],[راجع ]]","v":0},null,{"$f":"الجدول1[[#This Row],[السعر البيع]]*الجدول1[[#This Row],[الوارد ]]","v":0}]
[null,null,null,null,0,null,null,null,null,null,{"$f":"الجدول1[[#This Row],[الوارد ]]-الجدول1[[#This Row],[الصادر ]]-الجدول1[[#This Row],[حجوزات]]-الجدول1[[#This Row],[راجع ]]","v":0},{"$f":"الجدول1[[#This Row],[السعر عراقي ]]*الجدول1[[#This Row],[الباقي ]]","v":0},{"$f":"الجدول1[[#This Row],[السعر $]]*الجدول1[[#This Row],[الوارد ]]","v":0},{"$f":"الجدول1[[#This Row],[الصادر ]]*الجدول1[[#This Row],[السعر عراقي ]]","v":0},{"$f":"الجدول1[[#This Row],[السعر $]]*الجدول1[[#This Row],[راجع ]]","v":0},null,{"$f":"الجدول1[[#This Row],[السعر البيع]]*الجدول1[[#This Row],[الوارد ]]","v":0}]
[null,null,null,null,0,null,null,null,null,null,{"$f":"الجدول1[[#This Row],[الوارد ]]-الجدول1[[#This Row],[الصادر ]]-الجدول1[[#This Row],[حجوزات]]-الجدول1[[#This Row],[راجع ]]","v":0},{"$f":"الجدول1[[#This Row],[السعر عراقي ]]*الجدول1[[#This Row],[الباقي ]]","v":0},{"$f":"الجدول1[[#This Row],[السعر $]]*الجدول1[[#This Row],[الوارد ]]","v":0},{"$f":"الجدول1[[#This Row],[الصادر ]]*الجدول1[[#This Row],[السعر عراقي ]]","v":0},{"$f":"الجدول1[[#This Row],[السعر $]]*الجدول1[[#This Row],[راجع ]]","v":0},null,{"$f":"الجدول1[[#This Row],[السعر البيع]]*الجدول1[[#This Row],[الوارد ]]","v":0}]
[null,null,null,null,0,null,null,null,null,null,{"$f":"الجدول1[[#This Row],[الوارد ]]-الجدول1[[#This Row],[الصادر ]]-الجدول1[[#This Row],[حجوزات]]-الجدول1[[#This Row],[راجع ]]","v":0},{"$f":"الجدول1[[#This Row],[السعر عراقي ]]*الجدول1[[#This Row],[الباقي ]]","v":0},{"$f":"الجدول1[[#This Row],[السعر $]]*الجدول1[[#This Row],[الوارد ]]","v":0},{"$f":"الجدول1[[#This Row],[الصادر ]]*الجدول1[[#This Row],[السعر عراقي ]]","v":0},{"$f":"الجدول1[[#This Row],[السعر $]]*الجدول1[[#This Row],[راجع ]]","v":0},null,{"$f":"الجدول1[[#This Row],[السعر البيع]]*الجدول1[[#This Row],[الوارد ]]","v":0}]
[null,null,null,null,0,null,null,null,null,null,{"$f":"الجدول1[[#This Row],[الوارد ]]-الجدول1[[#This Row],[الصادر ]]-الجدول1[[#This Row],[حجوزات]]-الجدول1[[#This Row],[راجع ]]","v":0},{"$f":"الجدول1[[#This Row],[السعر عراقي ]]*الجدول1[[#This Row],[الباقي ]]","v":0},{"$f":"الجدول1[[#This Row],[السعر $]]*الجدول1[[#This Row],[الوارد ]]","v":0},{"$f":"الجدول1[[#This Row],[الصادر ]]*الجدول1[[#This Row],[السعر عراقي ]]","v":0},{"$f":"الجدول1[[#This Row],[السعر $]]*الجدول1[[#This Row],[راجع ]]","v":0},null,{"$f":"الجدول1[[#This Row],[السعر البيع]]*الجدول1[[#This Row],[الوارد ]]","v":0}]
[null,null,null,null,0,null,null,null,null,null,{"$f":"الجدول1[[#This Row],[الوارد ]]-الجدول1[[#This Row],[الصادر ]]-الجدول1[[#This Row],[حجوزات]]-الجدول1[[#This Row],[راجع ]]","v":0},{"$f":"الجدول1[[#This Row],[السعر عراقي ]]*الجدول1[[#This Row],[الباقي ]]","v":0},{"$f":"الجدول1[[#This Row],[السعر $]]*الجدول1[[#This Row],[الوارد ]]","v":0},{"$f":"الجدول1[[#This Row],[السعر البيع]]*الجدول1[[#This Row],[الصادر ]]","v":0},{"$f":"الجدول1[[#This Row],[السعر $]]*الجدول1[[#This Row],[راجع ]]","v":0},{"$f":"الجدول1[[#This Row],[جرد الوارد $]]-الجدول1[[#This Row],[مبلغ الراجع $]]","v":0},{"$f":"الجدول1[[#This Row],[السعر البيع]]*الجدول1[[#This Row],[الوارد ]]","v":0}]
[null,null,null,null,0,null,null,null,null,null,{"$f":"الجدول1[[#This Row],[الوارد ]]-الجدول1[[#This Row],[الصادر ]]-الجدول1[[#This Row],[حجوزات]]-الجدول1[[#This Row],[راجع ]]","v":0},{"$f":"الجدول1[[#This Row],[السعر عراقي ]]*الجدول1[[#This Row],[الباقي ]]","v":0},{"$f":"الجدول1[[#This Row],[السعر $]]*الجدول1[[#This Row],[الوارد ]]","v":0},{"$f":"الجدول1[[#This Row],[السعر البيع]]*الجدول1[[#This Row],[الصادر ]]","v":0},{"$f":"الجدول1[[#This Row],[السعر $]]*الجدول1[[#This Row],[راجع ]]","v":0},{"$f":"الجدول1[[#This Row],[جرد الوارد $]]-الجدول1[[#This Row],[مبلغ الراجع $]]","v":0},{"$f":"الجدول1[[#This Row],[السعر البيع]]*الجدول1[[#This Row],[الوارد ]]","v":0}]
[null,null,null,null,0,null,null,null,null,null,{"$f":"الجدول1[[#This Row],[الوارد ]]-الجدول1[[#This Row],[الصادر ]]-الجدول1[[#This Row],[حجوزات]]-الجدول1[[#This Row],[راجع ]]","v":0},{"$f":"L5+L7+L8+L9+L12+L13+L14+L15+L20+L24+L27+L28+L30+L34+L35+L38+L39+L40+L41+L42+L43+L44+L48+L55+L57+L60+L62+L64+L65+L72+L75+L76+L77+L78+L19+L82+L86+L89+L90+L91+L92+L93+L100+L102+L104+L105+L106+L127+L128","v":5438750},{"$f":"M5+M7+M8+M9+M12+M13+M14+M15+M20+M24+M27+M28+M30+M34+M35+M38+M39+M40+M41+M42+M43+M44+M48+M55+M57+M60+M62+M64+M65+M72+M75+M76+M77+M78+M19+M82+M86+M89+M90+M91+M92+M93+M100+M102+M104+M105+M106+M127+M128","v":3678.6},{"$f":"N5+N7+N8+N9+N12+N13+N14+N15+N17+N18+N19+N20+N24+N27+N28+N30+N34+N35+N38+N39+N40+N41+N42+N43+N44+N48+N55+N57+N60+N62+N64+N65+N67+N68+N69+N70+N71+N72+N75+N76+N77+N78+N82+N86+N89+N90+N91+N92+N93+N100+N102+N104+N105+N106+N127+N128","v":985},{"$f":"الجدول1[[#This Row],[السعر $]]*الجدول1[[#This Row],[راجع ]]","v":0},{"$f":"P5+P7+P8+P9+P12+P13+P14+P15+P17+P18+P19+P20+P24+P27+P28+P30+P34+P35+P38+P39+P40+P41+P42+P43+P44+P48+P55+P57+P60+P62+P64+P65+P67+P68+P69+P70+P71+P72+P75+P76+P77+P78+P82+P86+P89+P90+P91+P92+P93+P100+P102+P104+P105+P106+P127+P128","v":4030},{"$f":"Q5+Q6+Q7+Q8+Q9+Q12+Q13+Q14+Q15+Q17+Q18+Q19+Q20+Q24+Q27+Q28+Q30+Q34+Q35+Q38+Q39+Q40+Q41+Q42+Q43+Q44+Q45+Q46+Q47+Q48+Q49+Q50+Q51+Q52+Q53+Q54+Q55+Q57+Q58+Q59+Q60+Q62+Q63+Q64+Q65+Q67+Q68+Q69+Q70+Q71+Q72+Q73+Q74+Q75+Q76+Q77+Q78+Q82+Q83+Q84+Q85+Q86+Q87++Q88+Q89+Q90+Q91+Q92+Q93+Q95+Q96+Q97+Q98+Q99+Q100+Q101+Q102+Q103+Q104+Q105+Q106+Q107+Q108+Q109+Q110+Q111+Q112+Q113+Q114+Q115++Q117+Q118+Q119+Q120+Q121+Q122+Q123+Q124+Q125+Q126+Q127+Q128","v":21139}]
[]
[]
[]
[]
[]
[]
[]
[]
[]
[]
[]
[]
[]
[]
[]
[]
[]
[]
[]
[]
[]
[]
[]
[]
[]
[4,null,"مثرامة لحم صناعي ",60,114000,115,4,{"$f":"A155*D155","v":240},null,null,4,456000,240,0,0,null,460]
[10,null,"مكينه حلاقة متعدده",8,15200,17,8,{"$f":"A156*D156","v":80},null,null,8,121600,64,0,0,64,136]
[10,null,"دريل باركسايد شحن ",15,28500,30,10,150,null,null,10,285000,150,0,0,null,300]
[10,null,"دريل اخضر ",24,45600,45,13,240,null,null,13,592800,312,0,0,312,585]
[100,null,"لايت مدالية ",2,3800,5,129,200,null,null,129,490200,258,0,0,258,645]
[10,null,"ام بي 3 كلاسك ",8,15200,14,10,80,null,null,10,152000,80,0,0,80,140]
[12,null,"هراسة سلفر ولف ",12.5,23750,25,12,150,null,null,12,285000,150,0,0,null,300]
[3,null,"بلور سحب كبير ريوبي",20,38000,40,3,60,null,null,3,114000,60,0,0,null,120]
[null,null,null,null,null,null,null,{"$f":"H155+H156+H157+H158+H159+H160+H161+H162","v":1200}]

{"sheet":"صادر الوصولات ","index":3,"n_rows":26,"n_cols":9,"rows_kept":26,"cut":false,"hidden":false,"merged":[[1,1,1,7],[25,8,25,9]]}
[]
[null,"الوصولات"]
[null,"الجمعة 24 ","السبت 25","الاحد 26"," الاثنين 27","الثلاثاء 28 ","الاربعاء 1","الخميس 2"]
[1,40,null,160,120]
[2,27,null,15]
[3,40,null,null,55]
[4,65,null,null,0]
[5,25,null,null,105]
[6,59]
[7,38]
[8,40]
[9,28]
[10,24]
[11,40]
[12,145]
[13,0]
[14]
[15]
[16]
[17]
[18]
[19]
[20]
[21]
[22]
["المجموع",{"$f":"B4+B5+B6+B7+B8+B9+B10+B11+B12+B13+B14+B15+B16+B17+B18+B19+B20+B21+B22+B23+B24+B25","v":571},0,175,{"$f":"E4+E5+E6+E7+E8+E9+E10+E11+E12+E13+E14+E15+E16+E17+E18+E19+E20+E21+E22+E23+E24+E25","v":280},0,0,0,{"$f":"H26+G26+F26+E26+D26+C26+B26","v":1026}]

{"sheet":"الديون للمحل ","index":4,"n_rows":27,"n_cols":14,"rows_kept":27,"cut":false,"hidden":false,"merged":[[1,1,1,13]]}
[]
[null,"ديون المحل "]
[]
[null,"الاسم ","المادة ","المادة 2","المادة 3","المادة 4","المادة 5","الماده 6","المادة 7","تاريخ السحب ","المبلغ المطلوب  ","المبلغ المدفوع ","المبلغ المتبقي ","تاريخ الدفع "]
[null,"محمد جابر الحيدري ",null,null,null,null,null,null,null,null,null,null,{"$f":"K5-L5","v":0}]
[null,"كاظم شركة ",null,null,null,null,null,null,null,null,null,null,0]
[null,"عون ","رصيد",null,null,null,null,null,null,"2023-01-20",35,null,35]
[null,"ليث نت","رصيد",null,null,null,null,null,null,"2023-02-24",35,null,35]
[null,"مهدي ابو محمد ",null,null,null,null,null,null,null,"2023-01-01",500,null,500]
[null,"محمد العنتاكي ",null,null,null,null,null,null,null,null,null,null,0]
[null,"ام سيف ","مكنسة",null,null,null,null,null,null,"2023-02-24",105,null,105]
[null,"ابو حسن لعذاري ","رصيد","مكينه تدريج ",null,null,null,null,null,"2023-02-27",65,null,65]
[null,"حسين لعذاري","يدة  بلي",null,null,null,null,null,null,"2023-01-20",50,null,{"$f":"K13-L13","v":50}]
[null,"سيد حسين الميالي ","رصيد",null,null,null,null,null,null,"2023-02-03",45,null,45]
[null,"علي العارضي ","رصيد",null,null,null,null,null,null,"2023-02-25",35,null,35]
[null,"حسام فاضل ","دين",null,null,null,null,null,null,null,387,null,387]
[null,"انور جمال ",null,null,null,null,null,null,null,null,null,null,0]
[null,"سيف حميد ",null,null,null,null,null,null,null,null,null,null,0]
[null,"فوزي عباس","رصيد ",null,null,null,null,null,null,"2023-02-25",35,null,35]
[null,"مرزة",null,null,null,null,null,null,null,null,null,null,0]
[null,"ام مؤمل ","باقي",null,null,null,null,null,null,"2023-02-20",8,null,8]
[null,"محمد حمزة ",null," ",null,null,null,null,null,null,null,null,0]
[null,"محمد حتيته",null,null,null,null,null,null,null,null,null,null,0]
[null,"ابو شاكر ","رصيد",null,null,null,null,null,null,"2023-02-27",35,null,35]
[null,null,"رصيد",null,null,null,null,null,null,null,null,null,{"$f":"K25-L25","v":0}]
[null,"سيد حسين مولد ","دريل اخضر","خلاط سلفر",null,null,null,null,null,"2023-02-27",65,null,65]
[null,null,null,null,null,null,null,null,null,null,null,null,{"$f":"M5+M6+M7+M8+M9+M10+M11+M12+M14+M15+M16+M17+M18+M19+M20+M21+M22+M23+M24+M26","v":1350}]

{"sheet":"معلومات المعتمدين ","index":5,"n_rows":103,"n_cols":6,"rows_kept":103,"cut":false,"hidden":false,"merged":[]}
[]
[]
[null,"ت","اسم الزبون","رقم الزبون ","مكان الزبون ","ملاحظات "]
[null,null," ام حسين ",7847118464,"نجف مجمع الكرار بلوك 18دار 11"]
[null,null,"ابو امور الشمري",7828919990,"نجف الاشرف كوفه"]
[null,null,"ابو ايمن ",7500119868,"نجف شارع المطار "]
[null,null,"ابو حسين الخفاجي نجف ",7802175176,"نجف حي المكرمة "]
[null,null,"ابو حيدر المصلوخي",7732442483,"بغداد م مدينه الصدر / قطاع٣٨"]
[null,null,"ابو زهراء ",7725229026,"نجف العسكري "]
[null,null,"ابو علاء السعيدي ",7806366330,"نجف الجمعيه"]
[null,null,"ابو مصطفى الشكري نجف",7821267918,"نجف"]
[null,null,"ابو مهدي الموسوي ",7806655614,"النجف / البراكية / شارع المعمل"]
[null,null,"احسان العراقي",7828995575,"دوانيه الحمزه شرقي شارع سيد يونس"]
[null,null,"احمد ال نصار ","780 017 8292","الديوانيه قضاء الشنافيه"]
[null,null,"احمد البياتي ","783 110 1711","نجف"]
[null,null,"احمد الربيعي ",7709022251,"بصره / الجمعيه"]
[null,null,"احمد المالكي  ",7710888134,"بصره"]
[null,null,"احمد جاسم خلف",7706398529,"كربلاء حي المعلمين"]
[null,null,"احمد جبار ",7716389085,"بغداد مدينه الصدر"]
[null,null,"احمد نجاح ",7831818130,"نجف"]
[null,null,"اسامه الكبيسي ",7827774358,"الانبار هيت"]
[null,null,"الماسة كولد",7822645960,"كاظميه دور الضباط"]
[null,null,"ام حسين",7847118464,"نجف مجمع الكرار بلوك 18دار11"]
[null,null,"ام روز نجف مكرمه",7823001757,"نجف المكرمة"]
[null,null,"ام صاحب ",7815815719,"ديوانية / الامام الصادق "]
[null,null,"ام قيس",7805496786,"نجف / المهندسين "]
[null,null,"اياد الغزالي ",7819950330,"النجف الاشرف حي النصر"]
[null,null,"أنور ضياء الموسوي ",7830034455,"كوفه كفل"]
[null,null,"بأسم عباس",7813050370,"نجف حي المكرمه"]
[null,null,"بلال المولى ",7709903376,"موصل 17 تموز"]
[null,null,"بو ايمن الزركاني  ",7500119868,"النجف /شارع المطار القديم"]
[null,null,"جعفر الموسوي ",7810000605,"النجف جعيه"]
[null,null,"جواد كاظم هادي",7831226656," ناصريه مطعم حياوي"]
[null,null,"حسام داوود",7822244853,"بغداد الوشاش "]
[null,null,"حسين الفتلاوي",7801778738,"نجف"]
[null,null,"حمد من اربيل ",7503518885," هولير نوي"]
[null,null,"حمزه ابو عمشه",7830973082,"نجف مشخاب"]
[null,null,"حيدر التميمي ",7725906357,"بغداد البلديات"]
[null,null,"خادمه المنتظر",7728556786,"البصرة / المعقل "]
[null,null,"دكتور ليث الاسدي",7810001434,"النجف / حي ميسان"]
[null,null,"دلشاد جواد",7702247531,"كلار/سليمانيه(برده سور)"]
[null,null,"رجل شرقي ",7823541886,"ناصريه سوق الشيوخ"]
[null,null,"روان عمري ",7827333327,"نجف العسكري"]
[null,null,"زيد الركابي ",7803536677,"نجف 17 تموز"]
[null,null,"سليم العراقي",7813939534,"ميسان /مجر الكبير /ناحيه العدل "]
[null,null,"سيد صلاح ابو رغيف",7705501845,"ميسان / عواشه"]
[null,null,"سيد علي ",7822235425,"سماوه"]
[null,null,"سيد محمد جابر الحيدري",7800018866,"نجف"]
[null,null,"شاكر حوسه",7810679581,"نجف"]
[null,null,"صباح نوري ",7831841307,"نجف"]
[null,null,"صفاء التميمي ",7700631334,"بغداد / الشعلة"]
[null,null,"ضياء الخزعلي",7814510941,"شاميه"]
[null,null,"عادل المسلماني",7735394408,"كربلاء حي العامل المنطقه الرابعه"]
[null,null,"عامر محمد علي ",7801137908,"حله"]
[null,null,"عباس البهادلي ",7719701851,"بغداد مدينه الصدر قطاع40"]
[null,null,"عباس السنجري ",7701227764,"كركوك"]
[null,null,"عبد الحميد الدجيلي ",7809937955,"صلاح الدين الدجيل"]
[null,null,"عبد الله الرفاعي",7833418578]
[null,null,"عبدالله الملكي ",7806034467,"نجف"]
[null,null,"عدي ابو صوفي",7706809724," نجف حي جزيرة"]
[null,null,"علاء النجفي  ",7830464042," النجف قضاء المشخاب "]
[null,null,"علي السعيدي",7827885558,"الديوانية / قضاء الشنافية "]
[null,null,"علي عرب ",7728217280,"نجف"]
[null,null,"علي كاظم ديوانيه",7809019532,"الديوانية / الاسكان "]
[null,null,"علي محمد ",7810382851,"الديوانية / حي الجمهورية "]
[null,null,"عليكة التاج ",7710293398," البصره كرنه"]
[null,null,"عمار هاشم",7727455394,"ديالى خان بي سعد"]
[null,null,"غابات الامزون",7706744555,"بصره / تنومه"]
[null,null,"غسان الحميداوي ",7811639382,"نجف / حي الوفاء"]
[null,null,"فاطمية ",7821632960,"نجف العباسية "]
[null,null,"قصي الابراهيمي",7716788990,"كربلاء / حي عامل"]
[null,null,"ليث عنوز",7811839230,"نجف"]
[null,null,"مجهول مجهول  ",7830745568,"سماوة خضر"]
[null,null,"محمد البصري",7800935926,"البصرة النشوه"]
[null,null,"محمد امين ",7700677706,"بغداد مدينه الصدر"]
[null,null,"محمد رضا امزون",7713314545,"بغداد جميلة "]
[null,null,"محمد عزيز الدركزلي ",7813121421,"النجف  / حي الوفاء"]
[null,null,"محمد علي ",7517682964,"موصل"]
[null,null,"محمد علي فرج",7714118119," كربلاء سيف سعد"]
[null,null,"محمد علي فرح",7714118119,"كربلاء"]
[null,null,"محمد مجيد العبادي ",7832915043,"ناصريه سومر"]
[null,null,"محمد مصلاوي ",7705993861,"نجف عمود 150"]
[null,null,"محمود حميد ",7711110380,"سده الهنديه"]
[null,null,"مشتاق السوداني",7728169340]
[null,null,"مهند الطائي",7801539625,"حلة حلي الامام"]
[null,null,"مهند المياحي ",7709647251,"بغداد الشعب"]
[null,null,"ميثم لحجيمي",7807332450,"ديوانية / الامام الكاظم"]
[null,null,"ندى علي",7711637819,"بغداد مدينه الصدر"]
[null,null,"ندىة العبيدي ",7703706944,"بغداد الحريه "]
[null,null,"هاني حميد نجف ",7831366609,"كوفة عباسيه"]
[null,null,"هيثم  الشمري بغداد المنصور",7723399924,"بغداد / المنصور"]
[null,null,"وردة النرجس النرجس",7711167847,"كربلاء حي العامل المنطقة السادسة"]
[null,null,"وسام البدري",7713024720," بغداد الشعب"]
[null,null,"وسام البهاش ",7828274746,"نجف "]
[null,null,"وسام صلاح ",7704646066,"بغداد / الشعب"]
[null,null,"ياسر ثامر ",7703222344,"بغداد / شارع فلسطين"]
[null,null,"ابو هاني ",7827543433,"نجف "]
[null,null,"علي كامل الطائي",7811404031,"ذي قار الشطرة"]
[null,null,"علي اكبر شبكي",7710437633,"موصل برطله"]
[null,null,"اوراق الشتاء",7829807576,"بغداد حي العدل"]
[null,null,"خادمه المنتظر نسر ",7803386995,"نجف حي الاسكان"]
[null,null,"ابوحسن",7735384868,"نجف حي الزهراء قرب اسواق سلام"]
[null,null,"ام محمد",7818251958,"ديوانيه حي الجزائر "]

{"sheet":"الديون على المحل ","index":6,"n_rows":10,"n_cols":4,"rows_kept":10,"cut":false,"hidden":false,"merged":[[1,1,1,3]]}
[]
[null,"ديون على المحل"]
[]
[null,"اسم المخزن ","الدين بالعراقي ","الدين $"]
[null,"مخزن احمد ",12507000,{"$f":"الجدول6[[#This Row],[الدين بالعراقي ]]/153","v":81745.098039215693}]
[null,"مخزن علي ",1617000,{"$f":"الجدول6[[#This Row],[الدين بالعراقي ]]/153","v":10568.627450980392}]
[null,"مخزن مصطفى",2245000,{"$f":"الجدول6[[#This Row],[الدين بالعراقي ]]/153","v":14673.202614379084}]
[null,null,null,{"$f":"الجدول6[[#This Row],[الدين بالعراقي ]]/153","v":0}]
[null,null,null,{"$f":"الجدول6[[#This Row],[الدين بالعراقي ]]/153","v":0}]
[null,"المجموع ",{"$f":"C5+C6+C7+C8+C9","v":16369000},{"$f":"الجدول6[[#This Row],[الدين بالعراقي ]]/153","v":106986.92810457517}]